Cogmind - Beta 14 @@@ ROGUE MODE // 2024.10.09 @ 18:04:19 // Winter2019/RPGLIKE Player: Bulbasornado Result: Destroyed by G-73 Enforcer with Phase Gun Performance ------------- Evolutions (8) 4000 Regions Visited (40) 8000 Robots Destroyed (2479) 12395 Value Destroyed (141612) 141612 Prototype IDs (211) 4220 Alien Tech Used (12) 2400 Bonus (76856) 76856 TOTAL SCORE: 249483 Bonus ------- Triggered High Security 4500 High Alert Combat Kills 72451 Follower Combat Kills 1616 Entered Garrisons 1400 Used RIF Installer 500 Network Hubs Disabled 600 Aligned with FarCom 300 Met Zhirov 300 Built Enhanced Grunts 300 A7 Reached Mainframe 300 Met R17 at Cetus 500 Scanned by Researcher 500 Pursued by Intercept 1000 Met Sigix 2000 Friendly Fire -9411 Cogmind --------- Core Integrity 0/1350 Matter 300/300 Energy 400/400 System Corruption 0% Temperature Cool (9) Movement Flying (32) Location -2/Research Parts ------- > --- POWER (1) -------- Improved Fusion Compressor > --- PROPULSION (4) --- Cooled Impulse Thruster Improved Q-thruster Improved Q-thruster Cooled Q-thruster > --- UTILITY (14) ----- Experimental Core Analyzer Experimental Core Analyzer Experimental Armor Integrity Analyzer Experimental Weapon Cycler Graphene Brace Experimental Hacking Suite Experimental Hacking Suite Experimental Hacking Suite Experimental Hacking Suite Experimental Hacking Suite > --- WEAPON (4) ------- Enhanced Quantum Rifle Enhanced Quantum Rifle Sigix Sheargun Sigix Sheargun > --- INVENTORY (2) ---- High-powered Transdimensional Reconstructor Advanced Datajack Peak State ------------ > --- POWER ------------ Improved Fusion Compressor > --- PROPULSION ------- Improved Q-thruster Cooled Q-thruster Cooled Q-thruster Cooled Q-thruster > --- UTILITY ---------- Experimental Core Analyzer Experimental Core Analyzer Improved Armor Integrity Analyzer Experimental Weapon Cycler Experimental Reaction Control System Experimental Phase Shifter Graphene Brace Experimental Hacking Suite Experimental Hacking Suite Experimental Hacking Suite Experimental Hacking Suite Experimental Hacking Suite Experimental Hacking Suite Experimental Hacking Suite > --- WEAPON ----------- Heavy Wave Gun Enhanced Quantum Rifle Sigix Sheargun Sigix Sheargun > --- INVENTORY -------- High-powered Transdimensional Reconstructor Enhanced Quantum Rifle [Rating: 208] Favorites ----------- Power Improved Fusion Compressor Engine Backup Power III Power Core Improved Fusion Compressor Reactor Heavy Antimatter Reactor Propulsion Cooled Cesium-ion Thruster Treads Light Treads Leg High-density Centrium Leg Hover Unit Antigrav System Flight Unit Cooled Cesium-ion Thruster Utility Advanced Hacking Suite Device Graphene Brace Storage Small Battery Processor Core Analyzer Hackware Advanced Hacking Suite Protection Light Armor Plating Weapon Cooled Plasma Rifle Energy Gun Cooled Plasma Rifle Energy Cannon Advanced Beam Cannon Ballistic Gun Enhanced Autogun Ballistic Cannon Improved Light Cannon Launcher Grenade Launcher Special Weapon Improved Remote Datajack Impact Weapon Hammer Slashing Weapon Katana Piercing Weapon Kinetic Spear Special Melee Weapon Improved Datajack Build | -11 -10 -10 -9 -9 -9 -8 -8 -8 -8 -8 -8 -8 -8 -8 -7 -7 -7 -7 -6 -6 -6 -6 -6 -6 -6 -6 -5 -5 -5 -5 -4 -4 -4 -4 -4 -3 -3 -3 -3 -2 ------- Run | Yrd Mat Min Mat Min Exi Min Mat Gar Mat Gar Mat Gar Mat Sto Fac Was Fac Gar Fac Was Fac Ext Cet Arc Hub Gar Fac Upp Upp Zhi Pro Fac Was Fac Gar Res Qua Sec Gar Res Slots Evolved 19 | 2 4 . 5 . . . 2 . 1 . . . 1 . 1 . . . . . 1 . . . . . . . . . . 1 . . . 1 . . . . Power . | . . . . . . . . . . . . . . . . . . . . . . . . . . . . . . . . . . . . . . . . . Propulsion 3 | . 2 . 1 . . . . . . . . . . . . . . . . . . . . . . . . . . . . . . . . . . . . . Utility 13 | . 2 . 3 . . . 2 . 1 . . . 1 . 1 . . . . . 1 . . . . . . . . . . 1 . . . 1 . . . . Weapon 3 | 2 . . 1 . . . . . . . . . . . . . . . . . . . . . . . . . . . . . . . . . . . . . Parts Attached 583 | 6 21 1 33 3 . . 21 4 26 3 7 . 8 3 20 2 14 6 27 4 34 . 8 8 10 21 51 2 2 6 6 26 7 26 7 71 20 44 5 20 Power 17 | 1 1 . 2 . . . . . . . . . . . . . . . 1 . 3 . . . . 1 1 2 . 2 . . . . . 3 . . . . Engine 6 | 1 1 . 2 . . . . . . . . . . . . . . . . . 1 . . . . . . 1 . . . . . . . . . . . . Core 9 | . . . . . . . . . . . . . . . . . . . 1 . 2 . . . . 1 1 1 . 1 . . . . . 2 . . . . Reactor 2 | . . . . . . . . . . . . . . . . . . . . . . . . . . . . . . 1 . . . . . 1 . . . . Propulsion 98 | 1 4 . 10 . . . . . 6 . 3 . . 2 7 . 3 1 3 . 5 . 2 . 1 11 8 . . . . 4 2 4 . 9 . 5 2 5 Treads 4 | 1 . . . . . . . . . . . . . . . . . . . . . . . . . 1 . . . . . . 1 . . 1 . . . . Leg 1 | . . . . . . . . . . . . . . . . . . . . . . . . . . . . . . . . . . . . . . 1 . . Wheel . | . . . . . . . . . . . . . . . . . . . . . . . . . . . . . . . . . . . . . . . . . Hover 2 | . . . . . . . . . . . . . . . . . . . . . . . . . . . 1 . . . . . . . . . . . . 1 Flight 91 | . 4 . 10 . . . . . 6 . 3 . . 2 7 . 3 1 3 . 5 . 2 . 1 10 7 . . . . 4 1 4 . 8 . 4 2 4 Utility 287 | 1 5 1 9 2 . . 9 4 6 . 2 . 4 . 6 2 9 5 9 . 17 . 4 4 9 9 27 . 2 4 3 17 5 18 5 36 13 29 2 9 Device 183 | 1 1 1 5 2 . . 1 3 4 . 2 . 1 . . 1 5 3 2 . 13 . 3 3 5 4 16 . 1 4 2 13 4 18 2 25 10 23 . 5 Storage 2 | . . . . . . . . . . . . . . . . . . . . . 1 . . . . . 1 . . . . . . . . . . . . . Processor 25 | . 2 . 2 . . . 3 . . . . . . . 1 1 1 . 1 . . . . 1 1 1 . . 1 . . 1 . . . 2 2 4 . 1 Hackware 64 | . 2 . . . . . 3 1 2 . . . 3 . 5 . 3 2 5 . 3 . . . 1 2 10 . . . . 3 . . 3 9 1 2 2 2 Protection 13 | . . . 2 . . . 2 . . . . . . . . . . . 1 . . . 1 . 2 2 . . . . 1 . 1 . . . . . . 1 Artifact . | . . . . . . . . . . . . . . . . . . . . . . . . . . . . . . . . . . . . . . . . . Weapon 181 | 3 11 . 12 1 . . 12 . 14 3 2 . 4 1 7 . 2 . 14 4 9 . 2 4 . . 15 . . . 3 5 . 4 2 23 7 10 1 6 Energy Gun 76 | . . . 1 . . . 3 . 3 1 1 . 3 1 1 . 1 . . 1 3 . 2 2 . . 11 . . . 2 4 . 3 2 15 4 8 1 3 Energy Cannon 6 | . 1 . 3 . . . 1 . 1 . . . . . . . . . . . . . . . . . . . . . . . . . . . . . . . Ballistic Gun 48 | 3 7 . 4 1 . . 5 . 7 1 . . . . 3 . . . 7 3 4 . . 2 . . . . . . . . . . . . 1 . . . Ballistic Cannon 4 | . . . 1 . . . . . . . . . . . . . . . . . . . . . . . 1 . . . . . . . . 1 . 1 . . Launcher 7 | . 1 . 1 . . . 2 . 2 . . . . . 1 . . . . . . . . . . . . . . . . . . . . . . . . . Special Weapon 13 | . 1 . . . . . . . . . . . . . 2 . . . . . . . . . . . 2 . . . 1 . . . . 6 . 1 . . Impact Weapon 5 | . 1 . 2 . . . . . 1 . . . . . . . 1 . . . . . . . . . . . . . . . . . . . . . . . Slashing Weapon 8 | . . . . . . . 1 . . 1 1 . 1 . . . . . . . . . . . . . . . . . . . . . . 1 2 . . 1 Piercing Weapon 1 | . . . . . . . . . . . . . . . . . . . . . . . . . . . 1 . . . . . . . . . . . . . Special Melee Weapon 13 | . . . . . . . . . . . . . . . . . . . 7 . 2 . . . . . . . . . . 1 . 1 . . . . . 2 Unidentified Prototypes 36 | . . . 3 1 . . . . 2 . . . . 1 . 1 . 1 . . 1 . 2 . . . 1 . . 3 1 . . 6 1 . 3 8 . 1 Parts Lost 14 | . . . . . . . . . . . . . 1 . . . . . . . . . 1 . 1 . 2 . . . . . . . . 2 . 3 . 4 Power . | . . . . . . . . . . . . . . . . . . . . . . . . . . . . . . . . . . . . . . . . . Propulsion 4 | . . . . . . . . . . . . . . . . . . . . . . . 1 . 1 . 2 . . . . . . . . . . . . . Utility 10 | . . . . . . . . . . . . . 1 . . . . . . . . . . . . . . . . . . . . . . 2 . 3 . 4 Weapon . | . . . . . . . . . . . . . . . . . . . . . . . . . . . . . . . . . . . . . . . . . Highest Loss Streak 4 | . . . . . . . . . . . . . 1 . . . . . . . . . 1 . 1 . 2 . . . . . . . . 1 . 1 . 4 To Critical Strikes . | . . . . . . . . . . . . . . . . . . . . . . . . . . . . . . . . . . . . . . . . . Average Slot Usage (%) 98 | . 89 100 99 100 100 100 99 100 99 99 99 100 99 100 99 100 99 99 99 83 99 100 99 100 99 96 95 95 95 95 94 92 95 97 100 99 99 99 99 98 Engine 2 | . 4 10 6 6 6 6 5 5 5 5 5 5 5 5 4 5 5 5 . . . . . . . . . . . . . . . . . . . . . . Core 2 | . . . . . . . . . . . . . . . . . . . 4 5 4 4 4 4 4 1 3 4 4 3 4 4 4 4 4 3 4 4 4 4 Flight 19 | . 19 30 27 26 26 26 23 23 22 22 21 22 21 21 20 20 19 20 20 20 19 19 18 19 18 18 14 14 14 14 14 13 12 15 18 17 17 17 17 17 Device 12 | . 4 10 11 13 13 13 6 10 20 16 16 16 15 15 10 10 10 9 11 15 12 14 13 9 4 12 9 9 9 9 14 17 18 18 17 17 16 16 17 17 Processor 4 | . 1 . 3 6 6 6 4 3 . . . . . . . 5 5 2 1 . . . . 3 8 4 4 4 4 4 4 4 4 4 3 4 11 12 12 9 Hackware 34 | . 14 20 14 13 13 13 26 29 27 33 33 33 35 36 41 40 39 42 41 40 42 42 42 42 41 35 41 42 42 41 38 36 36 36 36 37 31 30 30 31 Energy Gun 10 | . . . . . . . 5 5 4 4 5 5 4 5 4 5 4 5 5 . 12 14 14 18 19 19 18 19 19 19 18 15 18 18 18 16 16 16 17 16 Ballistic Gun 7 | . 40 20 20 20 20 20 16 17 15 15 16 16 15 15 14 15 15 15 14 2 6 4 4 . . . . . . . . . . . . . . . . . Peak Build Rating 208 | 6 17 18 33 39 32 32 47 55 71 71 71 71 75 78 95 97 105 108 121 121 132 132 135 130 133 118 142 142 142 144 148 169 174 182 183 185 193 208 207 206 Average Rating 112 | 5 11 17 30 32 32 32 42 47 67 70 70 71 74 77 87 94 96 104 111 106 128 132 130 129 126 109 129 141 141 142 143 153 171 175 180 177 183 186 205 195 On Entrance 103 | . 6 16 18 33 32 32 32 45 55 71 71 71 71 75 78 95 95 105 101 121 121 132 132 128 130 114 113 142 142 142 143 143 169 172 181 170 181 184 206 193 Naked Turns . | . . . . . . . . . . . . . . . . . . . . . . . . . . . . . . . . . . . . . . . . . Heaviest Build 41 | 10 12 11 22 20 20 20 23 20 25 20 20 20 22 23 24 22 23 22 26 24 29 29 29 29 36 36 34 29 29 34 34 41 41 39 38 39 38 39 39 41 Greatest Support 49 | 25 25 17 21 21 21 21 21 21 25 25 25 25 25 25 29 29 29 27 33 30 41 41 41 41 43 32 38 35 35 35 38 41 41 49 49 49 49 49 49 49 Greatest Overweight (x) 3 | 1 1 . 1 . . . 2 . 2 . . . . . . . . . . . . . 1 . 1 2 1 . . . . 1 2 . 2 2 2 2 . 3 Average Overweight (x) . | . . . . . . . . . . . . . . . . . . . . . . . . . . . . . . . . . . . . . . . . . Largest Inventory Capacity 2 | . . . . . . . . . . . . . . . . . . 2 2 2 2 2 2 2 2 2 2 2 2 2 2 2 2 2 2 2 2 2 2 2 Average Capacity 1 | . . . . . . . . . . . . . . . . . . 1 2 2 2 2 2 2 2 2 2 2 2 2 2 2 2 2 2 2 2 2 2 2 Most Carried 2 | . . . . . . . . . . . . . . . . . . 2 2 2 2 2 2 2 2 2 2 2 2 2 2 2 2 2 2 2 2 2 2 2 Average Carried 1 | . . . . . . . . . . . . . . . . . . 1 1 2 1 2 2 1 1 1 1 2 2 1 2 1 2 2 1 1 1 1 1 1 Final Capacity 2 | . . . . . . . . . . . . . . . . . . 2 2 2 2 2 2 2 2 2 2 2 2 2 2 2 2 2 2 2 2 2 2 2 Final Carried 2 | . . . . . . . . . . . . . . . . . . 2 2 2 2 2 2 2 2 2 2 2 2 2 2 2 2 2 2 2 2 2 2 2 Class Distribution -------------------- 75% | Wizard-Sprinter 8% | Hacker-Sprinter 8% | Wizard-Gunner 6% | Hacker-Gunner Dominant Class ---------------- Hacker-Gunner | -10/Materials Hacker-Gunner | -10/Mines Hacker-Sprinter | -9/Materials Hacker-Sprinter | -9/Mines Hacker-Sprinter | -9/Exiles Hacker-Sprinter | -8/Mines Wizard-Sprinter | -8/Materials Wizard-Sprinter | -8/Garrison Wizard-Sprinter | -8/Materials Wizard-Sprinter | -8/Garrison Wizard-Sprinter | -8/Materials Wizard-Sprinter | -8/Garrison Wizard-Sprinter | -8/Materials Wizard-Sprinter | -8/Storage Wizard-Sprinter | -7/Factory Wizard-Sprinter | -7/Waste Wizard-Sprinter | -7/Factory Wizard-Sprinter | -7/Garrison Wizard-Sprinter | -6/Factory Wizard-Sprinter | -6/Waste Wizard-Sprinter | -6/Factory Wizard-Sprinter | -6/Extension Wizard-Sprinter | -6/Cetus Wizard-Sprinter | -6/Archives Wizard-Sprinter | -6/Hub_04(d) Wizard-Sprinter | -6/Garrison Wizard-Sprinter | -5/Factory Wizard-Sprinter | -5/Upper Caves Wizard-Sprinter | -5/Upper Caves Wizard-Sprinter | -5/Zhirov Wizard-Sprinter | -4/Proximity Caves Wizard-Sprinter | -4/Factory Wizard-Gunner | -4/Waste Wizard-Sprinter | -4/Factory Wizard-Sprinter | -4/Garrison Wizard-Sprinter | -3/Research Wizard-Sprinter | -3/Quarantine Wizard-Sprinter | -3/Section 7 Wizard-Sprinter | -3/Garrison Wizard-Sprinter | -2/Research Resources | -11 -10 -10 -9 -9 -9 -8 -8 -8 -8 -8 -8 -8 -8 -8 -7 -7 -7 -7 -6 -6 -6 -6 -6 -6 -6 -6 -5 -5 -5 -5 -4 -4 -4 -4 -4 -3 -3 -3 -3 -2 ----------- Run | Yrd Mat Min Mat Min Exi Min Mat Gar Mat Gar Mat Gar Mat Sto Fac Was Fac Gar Fac Was Fac Ext Cet Arc Hub Gar Fac Upp Upp Zhi Pro Fac Was Fac Gar Res Qua Sec Gar Res Matter Collected 58461 | 314 1781 364 1686 66 144 304 1610 832 2417 858 2014 720 1655 1595 4250 404 3376 988 3918 591 2820 713 1389 223 4727 341 2319 198 150 . 526 1996 241 2614 749 3806 4021 1491 50 200 Remotely . | . . . . . . . . . . . . . . . . . . . . . . . . . . . . . . . . . . . . . . . . . Salvage Created 152645 | 98 1550 431 3115 192 303 259 2718 1242 3212 1659 2637 1176 2817 3748 4493 1098 7394 1660 6946 1071 7826 3079 4876 362 7119 3392 9019 1007 729 . 1334 8464 955 8503 2063 9619 10342 10127 4834 11176 Parts 6761 | 3 140 22 214 7 17 30 154 109 156 112 149 97 151 173 256 21 453 103 322 42 302 89 155 11 292 82 258 42 18 . 48 290 17 350 120 412 424 373 277 470 Haulers Intercepted 131 | . 2 . 6 . . . 6 . 6 . 6 . 6 6 8 . 6 . 8 . 8 5 . . 12 . 9 . . . . 8 . 8 . 11 2 5 . 3 Recyclers Shooed 25 | . . 1 . . . . . . . . . . . 1 . . . . 10 . 2 . . . . . 4 . . . . 3 . 1 . 3 . . . . Parts Field Recycled . | . . . . . . . . . . . . . . . . . . . . . . . . . . . . . . . . . . . . . . . . . Retrieved Matter . | . . . . . . . . . . . . . . . . . . . . . . . . . . . . . . . . . . . . . . . . . Parts Self-Destructed 108 | . . . . . . . . . . . . . . . . . . . . . . . . . . . . 44 17 . 47 . . . . . . . . . Prevented . | . . . . . . . . . . . . . . . . . . . . . . . . . . . . . . . . . . . . . . . . . Kills | -11 -10 -10 -9 -9 -9 -8 -8 -8 -8 -8 -8 -8 -8 -8 -7 -7 -7 -7 -6 -6 -6 -6 -6 -6 -6 -6 -5 -5 -5 -5 -4 -4 -4 -4 -4 -3 -3 -3 -3 -2 ------- Run | Yrd Mat Min Mat Min Exi Min Mat Gar Mat Gar Mat Gar Mat Sto Fac Was Fac Gar Fac Was Fac Ext Cet Arc Hub Gar Fac Upp Upp Zhi Pro Fac Was Fac Gar Res Qua Sec Gar Res Combat Hostiles Destroyed 2558 | 1 45 12 69 3 9 7 50 43 58 46 53 38 50 72 89 4 155 37 110 . 139 51 128 4 113 38 136 21 10 . 26 125 . 135 51 138 144 144 73 131 Guns 2380 | 1 43 12 41 3 4 4 50 43 58 46 53 38 49 72 89 4 149 37 110 . 126 46 109 2 100 35 119 20 8 . 21 110 . 124 48 130 142 130 73 131 Cannons 35 | . 2 . 26 . 4 3 . . . . . . . . . . . . . . . . . . . . . . . . . . . . . . . . . . AOE 14 | . . . 2 . 1 . . . . . . . 1 . . . 6 . . . . . . . . . . . . . . . . 4 . . . . . . Classes Destroyed 31 | 3 8 . 5 . 1 . 2 3 . . . . . . . 1 . . . . 1 . . . . . 1 . . . . 1 . . 1 . 3 1 . . Worker 50 | . 2 . 5 . . . 2 . 3 . . . 1 2 9 . . . 3 . 6 . . . 1 . 3 . . . . 1 . 3 . 1 2 1 . 5 Builder 33 | . 3 . 1 . . 5 . . 1 . 1 . 1 2 3 . 1 . 2 . . . . . 3 . 1 . . . . 2 . 1 . . . . . 6 Tunneler 10 | 1 . 1 . . . 1 2 . . . 1 . . . 1 . . . . . . 1 . . . . . . . . . . . . . 1 . . . 1 Hauler 131 | . 2 . 6 . . . 6 . 6 . 6 . 6 6 8 . 6 . 8 . 8 5 . . 12 . 9 . . . . 8 . 8 . 11 2 5 . 3 Recycler 36 | 1 . 1 . 1 . . 3 . 1 . 3 . 1 1 2 . 3 . 6 . . . . . 1 . 1 . . . . . . 1 . 8 . . . 2 Carrier 1 | . . . . . . . . . . . . . . . . . . . . . . . . . . . . . . . . 1 . . . . . . . . Mechanic 24 | . . . 1 . . . 1 . . . 1 . . 1 1 . 5 . 2 . 1 . 2 . . . . . . . . . . 1 . . 7 1 . . Operator 23 | . 3 . 4 . . . 3 . . . 1 . 2 1 . . . . . . . . . 4 1 . . . . . . 1 . 1 . 1 1 . . . Watcher 119 | . 3 . 5 . . . 5 . 5 . 5 . 5 2 8 . 7 . 7 . 6 1 2 . 5 . 7 . . . . 12 . 8 . 12 3 5 . 6 Swarmer 320 | . 14 6 10 . 2 4 11 14 2 11 9 8 . . 17 . 10 . 3 . 14 5 40 . 4 12 10 8 1 . 1 9 . 17 21 25 . 6 22 4 Cutter 27 | . . . . . . . . 2 . . . . 3 . 1 . 2 . . . 4 . . . . . . . . . . . . 1 . . . 4 8 2 Saboteur 12 | . . . . . . . . . . . . . . . . . . . . . 1 . 2 . . . . . . . 1 . . . 1 2 3 . . 2 Grunt 1143 | . 28 6 43 3 4 3 23 12 39 17 30 16 29 52 49 . 85 25 64 . 73 17 40 . 45 14 77 7 2 . 5 63 . 50 9 48 63 40 5 57 Brawler 71 | . . . 2 . . . 2 . 3 1 2 1 3 . 4 . 7 2 1 . 3 3 6 . 1 . 2 1 2 . 1 3 . 4 . 3 5 6 1 2 Duelist 93 | . . . 3 . . . 1 . . 3 1 . 1 4 4 . 9 . 4 . 4 . 11 . 5 3 1 1 3 . 1 4 . 7 . 2 14 5 1 1 Protector 42 | . . . 1 . . . 1 . 1 . . . 1 4 4 . 7 . 1 . . . 2 . 3 . . . . . . 2 . 4 . 1 7 2 . 1 Researcher 5 | . . . . . . . . . . . . . . . . . . . . . . . . . . . . . . . . . . . . . 2 3 . . Sentry 260 | . . . 10 . . . 9 9 9 10 9 6 9 11 4 . 14 6 11 . 13 6 5 4 17 6 10 3 1 . 3 10 . 15 3 13 5 8 9 12 Demolisher 9 | 1 . . . . 1 . . . . . . . . . . . . . 1 . . . 3 . 1 . 2 . . . . . . . . . . . . . Specialist 20 | . . . . . . . 2 . . . . . . . . . . . 2 . . . 1 . . 2 2 . . . 3 2 . 5 . 1 . . . . Hunter 204 | . . . . . 2 . . . 3 2 . 1 3 1 3 . 11 1 13 . 19 1 7 . 7 . 12 . 1 . 8 23 . 17 4 22 2 13 10 18 Programmer 175 | . . . . . . . . 5 . . . 4 . . 2 . 9 3 7 . 5 . 6 . 21 1 9 . . . 2 5 . 8 6 14 40 14 12 2 Heavy 31 | . . . . . . . 1 . 1 . 2 . 1 . 1 . 1 . 2 . 2 . . . 2 . 2 . . . . 2 . 5 . 4 . 2 1 2 Behemoth 30 | . . . . . . . . 1 . . . . . . . . . . 1 . 1 2 . . 1 . 1 1 . . 1 2 . 2 5 3 . 2 4 3 Compactor 4 | . . . . . . . . . . . . . . . . 4 . . . . . . . . . . . . . . . . . . . . . . . . Cetus Guard 5 | . . . . . . . . . . . . . . . . . . . . . . . 5 . . . . . . . . . . . . . . . . . S7 Guard 2 | . . . . . . . . . . . . . . . . . . . . . . . . . . . . . . . . . . . . . . 2 . . Lightning 9 | . . . . . . . . . . . . . . . . . . . . . . . . . 6 . . . . . . . . . . . 3 . . . Tracker 28 | . . . . . . . . . . . . . . . . . . . . . . . . . . . . . . . . . . . . . . 15 . 13 Combat Programmer 27 | . . . . . . . . . . . . . . . . . . . . . . . . . . . . . . . . . . . . . . 15 . 12 Striker 6 | . . . . . . . . . . . . . . . . . . . . . . . . . . . . . . . . . . . 2 . . 4 . . Executioner 4 | . . . . . . . . . . . . . . . . . . . . . . . . . . . . . . . . . . . . . . 4 . . Alpha 7 3 | . . . . . . . . . . . . . . . . . . . . . . . . . . . . . . . . . . . . . 1 2 . . Fortress 1 | . . . . . . . . . . . . . . . . . . . . . . . . . . . . . . . . . . . . . 1 . . . Subdweller 3 | . 3 . . . . . . . . . . . . . . . . . . . . . . . . . . . . . . . . . . . . . . . Assembled 8 | . . . . . . . . . . . . . . . . . . . . . . . . . . . 8 . . . . . . . . . . . . . Wasp 3 | . . . . . . . . . . . . . . . . . . . . 3 . . . . . . . . . . . . . . . . . . . . Thug 28 | . . 1 . . . . . . . 1 . 1 . . . . . . . 12 6 5 1 . . . . . . . . . . . 1 . . . . . Savage 4 | . . . . . . . . . . . . . . . . . . . . 1 . 2 . . . . . . 1 . . . . . . . . . . . Butcher 5 | . . . . . . . . . . . . 1 . . . . . . . 1 . 3 . . . . . . . . . . . . . . . . . . Guerrilla 9 | . . . . . . . . . . 1 . . . . . . . . . . . 7 . . . . . . . . . . . . . . . . 1 . Infiltrator 3 | . . . . . . . . . . . . . . . . . . 2 . . . . . . . . . . . . . . . . . . . . 1 . Sapper 1 | . . . . . . . . . . . . . . . . . . 1 . . . . . . . . . . . . . . . . . . . . . . Best Kill Streak 48 | 2 7 5 18 3 9 4 13 7 8 16 15 12 10 24 13 4 28 8 11 . 18 8 48 4 13 6 16 10 9 . 12 12 . 19 12 11 10 25 17 24 Combat Bots Only 46 | 1 5 5 18 3 9 4 11 7 8 16 9 12 10 13 13 4 18 8 10 . 14 8 46 4 8 6 15 10 9 . 12 10 . 14 12 9 9 23 17 18 Max Kills in Single Turn 5 | 1 2 2 3 2 1 2 2 3 2 4 2 2 2 2 3 1 5 1 2 1 2 2 3 1 2 3 3 2 3 . 2 2 . 3 3 3 2 3 3 3 Gunslinging 3 | . . . . . . 1 1 2 1 3 1 1 1 1 1 . 1 . 1 . 1 . 2 . 1 2 2 1 . . 1 1 . 2 2 2 1 2 2 1 Exploded 5 | . . . 2 . 1 . . . . . . . 1 . . . 5 . . . . . . . . . . . . . . . . 3 . . . . . . Melee . | . . . . . . . . . . . . . . . . . . . . . . . . . . . . . . . . . . . . . . . . . Uniques/NPCs Destroyed . | . . . . . . . . . . . . . . . . . . . . . . . . . . . . . . . . . . . . . . . . . Combat | -11 -10 -10 -9 -9 -9 -8 -8 -8 -8 -8 -8 -8 -8 -8 -7 -7 -7 -7 -6 -6 -6 -6 -6 -6 -6 -6 -5 -5 -5 -5 -4 -4 -4 -4 -4 -3 -3 -3 -3 -2 -------- Run | Yrd Mat Min Mat Min Exi Min Mat Gar Mat Gar Mat Gar Mat Sto Fac Was Fac Gar Fac Was Fac Ext Cet Arc Hub Gar Fac Upp Upp Zhi Pro Fac Was Fac Gar Res Qua Sec Gar Res Hostile Shots Fired 8141 | 7 52 52 201 2 62 19 119 118 101 68 79 53 71 103 281 . 412 89 441 . 470 116 392 15 370 92 255 31 17 . 101 587 . 638 135 594 474 669 146 709 Missed 4551 | . 20 20 99 . 27 8 51 60 58 21 34 21 34 54 141 . 188 47 263 . 274 67 231 7 180 51 105 14 6 . 60 338 . 458 83 376 320 349 106 380 Damage Taken 60344 | 302 324 327 1007 20 428 96 721 597 540 459 619 310 786 596 1608 . 2117 429 2651 . 3289 798 2495 169 4052 630 3028 250 218 . 478 3578 . 3617 981 4463 3578 6936 880 6967 Core 48715 | 255 265 269 730 12 307 77 552 449 438 366 498 242 626 488 1289 . 1689 341 2131 . 2701 639 2032 137 3353 425 2479 207 185 . 389 2898 . 2925 790 3653 2923 5668 729 5558 Absorbed by Shields 5493 | . . . 222 8 152 39 272 227 206 180 234 122 242 222 604 . 822 43 . . . 16 432 . . . 51 . . . 178 1212 . 9 . . . . . . Redirected to Core 38942 | 165 192 183 625 12 237 60 435 404 346 293 405 215 567 366 1093 . 1365 298 1828 . 2069 557 1578 117 2271 364 1959 154 127 . 284 2281 . 2450 667 2878 2299 4520 549 4729 Redirected to Shielding 79 | . . . . . . . . . . . . . . . . . . . . . . . . . . . . . . . . . . . . . . . . 79 Ignored by Resistances 3909 | . . . . . . . 57 36 . . . . . . . . 54 13 159 . 149 51 175 14 98 28 168 31 11 . 77 330 . 363 88 352 36 737 118 764 Regen/Repaired (Parts) 400 | . . . . . . . . . . . . . . . . . . . . . . . . . . . 149 . . . . . . . . . . 251 . . Core Remaining (%) 82 | 57 . 83 . . . 61 . . . . . . . 100 . . . 100 . . . . . . . 40 . . . . 100 . . . 100 . . . 100 . Volleys Fired 7318 | 6 145 43 311 12 23 19 228 107 273 83 207 79 264 182 495 38 340 91 388 42 349 114 210 22 271 149 351 24 13 . 48 368 11 346 90 431 345 366 152 282 Largest 4 | 3 3 3 4 4 4 4 4 4 4 4 4 4 4 4 4 4 4 4 4 4 4 4 4 4 4 4 4 4 4 . 4 4 4 4 4 4 4 4 4 4 Hottest 353 | 60 100 76 137 137 137 137 137 132 136 136 136 136 145 145 140 140 140 140 140 140 130 97 97 97 153 153 153 153 153 . 153 283 283 283 283 283 283 295 353 330 Shots Fired 22843 | 18 422 84 643 21 86 65 564 305 795 290 695 259 654 588 1501 152 1144 321 1291 168 1177 427 713 75 936 359 1040 96 52 . 180 1084 17 1093 287 1321 1186 1241 458 1035 Gun 22395 | 18 406 81 360 9 64 48 547 305 789 290 695 259 654 588 1499 152 1144 321 1291 168 1177 427 713 75 936 359 1016 96 52 . 177 1084 17 1093 287 1286 1186 1233 458 1035 Cannon 364 | . 15 . 283 12 22 17 13 . 2 . . . . . . . . . . . . . . . . . . . . . . . . . . . . . . . Launcher 12 | . . 3 . . . . 4 . 4 . . . . . 1 . . . . . . . . . . . . . . . . . . . . . . . . . Special 72 | . 1 . . . . . . . . . . . . . 1 . . . . . . . . . . . 24 . . . 3 . . . . 35 . 8 . . Kinetic 7686 | 18 406 81 360 9 64 48 336 198 524 207 490 180 395 413 1021 114 820 232 912 126 410 105 199 18 . . . . . . . . . . . . . . . . Thermal 14187 | . 16 . 245 12 22 17 224 107 265 83 205 79 259 175 478 38 324 89 379 42 767 322 514 57 936 359 1016 96 52 . 177 1084 17 1093 287 1286 1186 1195 177 507 Explosive 11 | . . 3 . . . . 4 . 4 . . . . . . . . . . . . . . . . . . . . . . . . . . . . . . . Electromagnetic 41 | . . . 38 . . . . . 2 . . . . . 1 . . . . . . . . . . . . . . . . . . . . . . . . . Slashing 847 | . . . . . . . . . . . . . . . . . . . . . . . . . . . . . . . . . . . . . . 38 281 528 Robot Hit Streak 93 | 5 11 14 37 8 14 16 37 21 21 41 42 35 29 39 37 42 48 29 34 33 42 64 55 32 52 30 49 33 37 . 19 42 8 48 72 57 93 63 52 75 Robot Miss Streak 7 | 1 4 2 2 1 2 2 4 4 4 3 5 4 7 3 3 2 5 3 5 2 4 2 4 2 4 3 3 2 1 . 2 4 1 4 4 5 3 4 1 5 Penetration Max 1 | . . . . . . . . . . . . . . . . . . . . . . . . . . . . . . . . . . . . . . 1 1 1 Secondary Targets 780 | . 4 2 1 . . 1 17 19 14 15 12 8 14 28 31 1 66 8 37 . 52 5 55 1 30 7 38 5 3 . 8 35 . 40 17 31 50 45 24 56 Max Gunslinging Chain 3 | . 1 1 1 . . 1 2 3 1 3 1 1 1 2 2 1 2 1 1 . 2 1 2 1 2 2 2 1 1 . 1 2 . 2 3 2 1 2 2 2 Shots Hit Robots 14972 | 10 131 62 292 10 57 30 284 177 377 207 315 156 301 389 562 135 812 230 944 134 865 305 519 54 664 270 680 69 48 . 140 814 10 783 211 943 877 931 353 821 Core Hits 6352 | 7 68 23 121 6 18 16 125 77 143 80 127 67 120 155 252 23 406 95 347 55 328 114 227 23 255 95 283 38 19 . 58 357 6 341 84 348 410 418 193 424 Critical Kills 18 | . . . 3 . . . 1 1 . . 2 . 1 . 2 . 2 . 4 1 . . 1 . . . . . . . . . . . . . . . . . Critical Parts Destroyed 28 | . 2 . 2 . . . . . 2 . 1 1 5 . 2 1 3 . 4 . 2 . 3 . . . . . . . . . . . . . . . . . Critical Strikes 497 | . 2 . 5 . . . 10 10 8 7 12 3 12 6 8 3 14 3 20 3 56 27 32 5 54 21 55 7 6 . 8 42 . 11 3 8 8 8 6 14 Burn 429 | . . . . . . . 9 9 6 7 9 2 6 6 4 2 9 2 12 2 54 27 28 5 54 21 55 7 6 . 8 42 . 11 3 8 8 7 . . Destroy 47 | . 2 . 5 . . . 1 1 2 . 3 1 6 . 4 1 5 1 8 1 2 . 4 . . . . . . . . . . . . . . . . . Sever 21 | . . . . . . . . . . . . . . . . . . . . . . . . . . . . . . . . . . . . . . 1 6 14 Melee Attacks 75 | . 2 . 1 . . . 1 . 1 . 1 . 1 . . . . . 32 . 8 . . . . . . . . . . 5 . . . . . . . 23 Impact 4 | . 2 . 1 . . . . . 1 . . . . . . . . . . . . . . . . . . . . . . . . . . . . . . . Slashing 3 | . . . . . . . 1 . . . 1 . 1 . . . . . . . . . . . . . . . . . . . . . . . . . . . Piercing . | . . . . . . . . . . . . . . . . . . . . . . . . . . . . . . . . . . . . . . . . . Sneak Attacks 68 | . . . . . . . . . . . . . . . . . . . 32 . 8 . . . . . . . . . . 5 . . . . . . . 23 Combat Hostiles . | . . . . . . . . . . . . . . . . . . . . . . . . . . . . . . . . . . . . . . . . . Follow-up Attacks . | . . . . . . . . . . . . . . . . . . . . . . . . . . . . . . . . . . . . . . . . . Damage Inflicted 397488 | 123 2382 1208 5670 206 854 645 5367 3332 7291 3826 6162 3056 5952 8008 12686 2652 18096 4753 19318 2998 20530 7739 12446 1289 17538 6848 17564 1815 1200 . 3612 25100 310 27562 6769 30567 29385 30770 12637 29222 Guns 388094 | 123 1912 975 3328 102 618 320 5140 3332 7174 3826 6095 3056 5757 7966 11526 2652 16794 4753 19318 2998 20530 7739 12446 1289 17538 6848 17519 1815 1200 . 3612 24713 310 25515 6769 30567 29290 30770 12637 29222 Cannons 2918 | . 157 . 2091 104 236 207 123 . . . . . . . . . . . . . . . . . . . . . . . . . . . . . . . . . Explosions 6476 | . 313 233 251 . . 118 104 . 117 . 67 . 195 42 1160 . 1302 . . . . . . . . . 45 . . . . 387 . 2047 . . 95 . . . Melee . | . . . . . . . . . . . . . . . . . . . . . . . . . . . . . . . . . . . . . . . . . Ramming . | . . . . . . . . . . . . . . . . . . . . . . . . . . . . . . . . . . . . . . . . . Kinetic 82767 | 123 1912 975 3328 102 618 320 3594 2177 5006 2586 4101 2152 3843 5153 7517 1807 10618 3070 12374 1997 5653 1076 2467 198 . . . . . . . . . . . . . . . . Thermal 285735 | . 354 149 1697 104 236 325 1669 1155 2243 1240 2061 904 1953 2813 4513 845 7478 1683 6944 1001 14877 6663 9979 1091 17538 6848 17564 1815 1200 . 3612 25100 310 27009 6769 30567 29290 29496 4225 12415 Explosive 1847 | . 116 84 83 . . . 63 . 42 . . . 156 42 613 . . . . . . . . . . . . . . . . . . 553 . . 95 . . . Electromagnetic 646 | . . . 562 . . . 41 . . . . . . . 43 . . . . . . . . . . . . . . . . . . . . . . . . . Impact . | . . . . . . . . . . . . . . . . . . . . . . . . . . . . . . . . . . . . . . . . . Slashing 26493 | . . . . . . . . . . . . . . . . . . . . . . . . . . . . . . . . . . . . . . 1274 8412 16807 Piercing . | . . . . . . . . . . . . . . . . . . . . . . . . . . . . . . . . . . . . . . . . . Highest Corruption 17 | . . . . . . . . 2 2 . . . . . . . 2 . 1 1 1 . 3 3 17 17 2 . . . . 1 1 4 1 7 3 . . . Average Corruption 2 | . . . . . . . . 1 1 . . . . . . . 1 . 1 1 1 . 2 2 9 17 1 . . . . 1 1 1 1 4 1 . . . Corruption Purged 35 | . . . . . . . . . 2 . . . . . . . 3 . . . 1 . . 3 . . 3 . . . . 1 . 4 . 14 4 . . . Corruption Blocked 35 | . . . . . . . . . . . . . . . . 6 2 . . . . . . . 14 . . . . . . . . . . . 5 8 . . Effects 365 | . . . . . . . . 4 7 . . . . . . . 17 . 2 50 8 . 28 22 14 80 6 . . . . 4 32 29 4 55 3 . . . Message Errors 102 | . . . . . . . . 2 2 . . . . . . . 2 . 1 20 1 . 8 9 6 13 2 . . . . . 12 9 1 13 1 . . . Matter Fused 67 | . . . . . . . . . 1 . . . . . . . 2 . . 7 1 . 10 3 1 15 1 . . . . . 7 5 . 13 1 . . . Heat Flow Errors 41 | . . . . . . . . 1 . . . . . . . . 3 . . 6 1 . 4 3 1 10 1 . . . . . 3 4 . 4 . . . . Energy Discharges 40 | . . . . . . . . 1 2 . . . . . . . 3 . . 4 . . 3 2 1 12 . . . . . 2 5 . . 5 . . . . Parts Rejected 4 | . . . . . . . . . . . . . . . . . . . . . 1 . . . . 1 . . . . . . . 2 . . . . . . Parts Fused 3 | . . . . . . . . . . . . . . . . . . . . 1 . . . . . . . . . . . . . 1 . 1 . . . . Data Loss (minor) 35 | . . . . . . . . . 1 . . . . . . . 1 . 1 8 . . . 1 1 7 1 . . . . 1 4 1 2 6 . . . . Data Loss (major) 14 | . . . . . . . . . 1 . . . . . . . 1 . . 3 1 . 1 2 . 2 . . . . . . . 1 . 2 . . . . Misfires 12 | . . . . . . . . . . . . . . . . . 1 . . . 2 . 2 . 1 2 . . . . . 1 . 2 . 1 . . . . Alerts 10 | . . . . . . . . . . . . . . . . . . . . 1 . . . 1 1 5 . . . . . . 1 1 . . . . . . Misdirections 1 | . . . . . . . . . . . . . . . . . . . . . . . . . 1 . . . . . . . . . . . . . . . Weapon Failures 36 | . . . . . . . . . . . . . . . . . 4 . . . 1 . . 1 1 13 1 . . . . . . 3 1 10 1 . . . Overload Shots 8 | . . . . . . . . . . . . . . . . . . . . . 1 . . . 2 . 3 . . . . 2 . . . . . . . . Overflow Damage 475 | . 45 5 6 . 2 48 24 . . . . . 11 . 90 . 144 . . . . . . . . . . . . . . . . 92 . . 8 . . . Projectiles 33 | . . . 5 . 2 2 24 . . . . . . . . . . . . . . . . . . . . . . . . . . . . . . . . . Explosions 442 | . 45 5 1 . . 46 . . . . . . 11 . 90 . 144 . . . . . . . . . . . . . . . . 92 . . 8 . . . Melee . | . . . . . . . . . . . . . . . . . . . . . . . . . . . . . . . . . . . . . . . . . Knockbacks . | . . . . . . . . . . . . . . . . . . . . . . . . . . . . . . . . . . . . . . . . . Impact . | . . . . . . . . . . . . . . . . . . . . . . . . . . . . . . . . . . . . . . . . . Kinetic . | . . . . . . . . . . . . . . . . . . . . . . . . . . . . . . . . . . . . . . . . . Secondary . | . . . . . . . . . . . . . . . . . . . . . . . . . . . . . . . . . . . . . . . . . Self-Inflicted Damage 549 | . . . . . . . 45 . 32 . 46 . 129 . . . 92 . 28 . . . . . . . . . . . . . . 49 . 27 . . . 101 Shots 12 | . . . . . . . 1 . 1 . 1 . 2 . . . 2 . 1 . . . . . . . . . . . . . . 2 . 1 . . . 1 Rammed . | . . . . . . . . . . . . . . . . . . . . . . . . . . . . . . . . . . . . . . . . . Targets Rammed . | . . . . . . . . . . . . . . . . . . . . . . . . . . . . . . . . . . . . . . . . . Kicked . | . . . . . . . . . . . . . . . . . . . . . . . . . . . . . . . . . . . . . . . . . Crushed . | . . . . . . . . . . . . . . . . . . . . . . . . . . . . . . . . . . . . . . . . . Highest Temperature 481 | . 18 . 198 96 84 104 260 269 320 196 142 146 261 227 273 170 352 134 133 201 76 62 294 178 272 228 27 6 12 . 6 410 152 481 387 451 396 406 352 217 Average Temperature 76 | . 6 . 23 45 35 42 46 42 83 76 66 67 77 70 84 77 69 68 61 65 24 37 80 107 18 100 6 4 7 . 3 73 63 136 134 93 69 65 79 76 Received Heat Transfer 9984 | . 42 138 379 12 24 43 231 187 198 150 198 84 180 288 579 . 550 191 651 . 837 192 299 27 450 165 688 45 45 . 38 583 . 348 87 576 681 228 30 540 Effects 37 | . . . . . . . 1 . 1 . . . . . 2 . 1 . . . . . . . . . . . . . . 1 . 20 3 3 4 . 1 . Shutdowns 9 | . . . . . . . . . . . . . . . . . 1 . . . . . . . . . . . . . . . . 6 1 . 1 . . . Energy Bleed 11 | . . . . . . . 1 . 1 . . . . . . . . . . . . . . . . . . . . . . 1 . 3 2 1 1 . 1 . Interference 12 | . . . . . . . . . . . . . . . 2 . . . . . . . . . . . . . . . . . . 7 . 2 1 . . . Matter Decay 2 | . . . . . . . . . . . . . . . . . . . . . . . . . . . . . . . . . . 2 . . . . . . Short Circuit 1 | . . . . . . . . . . . . . . . . . . . . . . . . . . . . . . . . . . . . . 1 . . . Damage (minor) 2 | . . . . . . . . . . . . . . . . . . . . . . . . . . . . . . . . . . 2 . . . . . . Siege Activations . | . . . . . . . . . . . . . . . . . . . . . . . . . . . . . . . . . . . . . . . . . Robots Corrupted . | . . . . . . . . . . . . . . . . . . . . . . . . . . . . . . . . . . . . . . . . . Combat Hostiles . | . . . . . . . . . . . . . . . . . . . . . . . . . . . . . . . . . . . . . . . . . Parts Fried 9 | . . . 1 . . . . . . . . . . . . . . . . . . . 7 . . . . . . . . . . . . . 1 . . . Impact Corruptions . | . . . . . . . . . . . . . . . . . . . . . . . . . . . . . . . . . . . . . . . . . Robots Melted 149 | . . . . . . . . . . . . . . . . . . . . . 16 6 19 3 15 9 21 1 3 . 4 16 . 7 3 9 2 15 . . Combat Hostiles 127 | . . . . . . . . . . . . . . . . . . . . . 13 4 19 2 13 3 17 1 2 . 4 15 . 7 3 8 2 14 . . Parts Melted 1364 | . 1 . 2 1 . . 6 3 3 4 11 . 3 2 4 . 9 1 16 . 128 54 91 16 142 50 140 8 7 . 36 170 . 103 21 115 71 112 11 23 Heat Transferred 423628 | . 433 200 2760 185 451 520 3530 2590 4358 2627 4157 1646 3547 4404 5743 1369 9324 2479 10064 1591 33179 15550 21732 2700 33333 14190 36220 3966 2781 . 7219 37082 370 29952 7696 34465 30565 33060 4418 13172 Parts Sabotaged 4 | . . . . . . . . . . . . . . . . . . . . . . . . . . . . . . . . . . . 2 . . 2 . . Parts Stolen . | . . . . . . . . . . . . . . . . . . . . . . . . . . . . . . . . . . . . . . . . . Parts Stripped . | . . . . . . . . . . . . . . . . . . . . . . . . . . . . . . . . . . . . . . . . . Power Chain Reactions 4 | . . . 2 . . . 1 . . . . . . . 1 . . . . . . . . . . . . . . . . . . . . . . . . . Alert | -11 -10 -10 -9 -9 -9 -8 -8 -8 -8 -8 -8 -8 -8 -8 -7 -7 -7 -7 -6 -6 -6 -6 -6 -6 -6 -6 -5 -5 -5 -5 -4 -4 -4 -4 -4 -3 -3 -3 -3 -2 ------- Run | Yrd Mat Min Mat Min Exi Min Mat Gar Mat Gar Mat Gar Mat Sto Fac Was Fac Gar Fac Was Fac Ext Cet Arc Hub Gar Fac Upp Upp Zhi Pro Fac Was Fac Gar Res Qua Sec Gar Res Peak Influence 4836 | 20 1083 790 2077 950 . 265 981 1516 2213 2416 1664 1564 1280 1058 4836 1737 3384 2916 1884 1101 2091 1600 4319 1727 1402 1817 1641 . . . . 1864 1104 3215 2919 2500 2730 2783 3142 2655 Initial 2368 | . 13 421 26 778 . . . 325 714 1438 1177 1034 720 301 346 1692 1215 2368 1499 1100 212 1007 . 1727 408 981 848 . . . . 83 1100 228 2250 1095 1374 1535 2087 1767 Average 813 | 3 582 194 1068 346 . 66 430 1015 1090 1870 949 1132 724 593 1793 1728 606 2688 671 471 783 306 1833 1318 253 1425 580 . . . . 677 505 1259 1907 1350 954 1238 2653 1013 Maximum Alert Level 5 | . 3 3 5 3 . 1 3 4 5 5 5 4 4 3 5 5 5 5 5 4 5 5 5 5 4 5 5 . . . . 5 4 5 5 5 5 5 5 5 Low Security (%) 20 | 100 9 70 3 34 . 81 19 . 6 . 9 . . 1 12 . . . 13 . 21 63 11 . 68 . 15 . . . . 28 . 7 . 20 11 4 . 5 Level 1 18 | . 16 11 10 35 . 18 24 2 12 . 5 . 1 2 8 . 65 . 17 58 15 13 9 . 4 . 22 . . . . 12 50 3 . 9 19 18 . 8 Level 2 21 | . 38 14 33 17 . . 41 23 9 . 25 12 37 78 8 . 13 . 26 23 13 9 11 . 19 . 28 . . . . 20 31 12 . 9 27 9 . 31 Level 3 12 | . 36 2 14 11 . . 14 23 27 . 13 35 56 18 2 . 6 . 27 17 22 2 6 . 5 13 23 . . . . 13 12 22 3 5 13 10 . 12 Level 4 11 | . . . 8 . . . . 50 16 14 37 51 3 . 3 . 5 . 7 . 11 10 14 93 1 46 8 . . . . 15 6 22 29 8 7 26 . 27 Level 5 10 | . . . 29 . . . . . 18 85 8 . . . 63 100 . 100 5 . 16 . 12 6 . 39 1 . . . . 9 . 31 67 45 3 9 100 1 High Security 4 | . . . . . . . . . 8 . . . . . 1 . 7 . 1 . . . 32 . . . . . . . . . . . . . 17 21 . 13 Max Security . | . . . . . . . . . . . . . . . . . . . . . . . . . . . . . . . . . . . . . . . . . Sterilizations 15 | . . . 1 . . . 1 . 1 . 1 . 1 1 . . 1 . . . 1 . 1 . . . 1 . . . . . . 1 . 1 1 1 . 1 Squads Dispatched 592 | . 13 . 20 . . 1 10 . 13 . 12 . 12 17 42 . 46 . 31 . 43 1 8 . 49 . 37 . . . 1 34 . 33 . 35 45 48 . 41 Investigation 212 | . 12 . 16 . . . 5 . 8 . 4 . 4 5 19 . 16 . 18 . 17 1 . . 10 . 18 . . . . 14 . 11 . 13 5 5 . 11 Extermination 76 | . . . . . . . . . . . . . . . 3 . 9 . 2 . 5 . . . 18 . 4 . . . . 3 . 1 . 5 20 5 . 1 Reinforcement 99 | . 1 . . . . 1 4 . 2 . 3 . 5 5 4 . 2 . 6 . 10 . . . 9 . 12 . . . . 7 . 9 . 6 2 6 . 5 Assault 131 | . . . 4 . . . 1 . 3 . 2 . 3 7 15 . 19 . 3 . 4 . 8 . 2 . 2 . . . 1 9 . 12 . 5 16 9 . 6 Garrison 38 | . . . . . . . . . . . 3 . . . 1 . . . 2 . 7 . . . 10 . 1 . . . . 1 . . . 6 2 3 . 2 Intercept 36 | . . . . . . . . . . . . . . . . . . . . . . . . . . . . . . . . . . . . . . 20 . 16 Searches Triggered . | . . . . . . . . . . . . . . . . . . . . . . . . . . . . . . . . . . . . . . . . . Construction Impeded 10 | . . . . . . 1 . . 1 . . . . 3 2 . . . . . . . . . 1 . . . . . . 1 . . . . 1 . . . Haulers Reinforced 25 | . . . . . . . . . . . . . . . . . . . 2 . 4 . . . 4 . 5 . . . . 2 . 1 . 3 1 2 . 1 Active Scanning Responses . | . . . . . . . . . . . . . . . . . . . . . . . . . . . . . . . . . . . . . . . . . Cargo Convoy Interrupts 2 | . . . . . . . . . . . . . . . . . . . . . . . . . . . . . . . . . . 1 . 1 . . . . Stealth | -11 -10 -10 -9 -9 -9 -8 -8 -8 -8 -8 -8 -8 -8 -8 -7 -7 -7 -7 -6 -6 -6 -6 -6 -6 -6 -6 -5 -5 -5 -5 -4 -4 -4 -4 -4 -3 -3 -3 -3 -2 --------- Run | Yrd Mat Min Mat Min Exi Min Mat Gar Mat Gar Mat Gar Mat Sto Fac Was Fac Gar Fac Was Fac Ext Cet Arc Hub Gar Fac Upp Upp Zhi Pro Fac Was Fac Gar Res Qua Sec Gar Res Distress Signals 61 | . 1 . 3 . . . 2 . 1 . 3 . 3 1 . . 3 . 4 . 3 1 2 . 2 . 3 . . . . 7 . 3 . 9 2 2 . 6 Communications Jammed . | . . . . . . . . . . . . . . . . . . . . . . . . . . . . . . . . . . . . . . . . . Distress Signals . | . . . . . . . . . . . . . . . . . . . . . . . . . . . . . . . . . . . . . . . . . Times Spotted 3074 | 2 44 12 91 1 10 7 60 39 79 37 71 34 62 85 162 8 197 36 120 1 161 37 174 14 122 32 153 17 8 . 25 160 . 182 52 172 201 168 66 172 Peak Tracking Total 16 | 2 6 3 13 1 9 4 6 5 9 6 10 3 7 7 13 6 13 4 7 1 6 6 12 2 10 5 10 7 7 . 5 7 . 10 9 15 16 13 11 14 Tactical Retreats 85 | . . . 6 . . . 1 . 4 . 3 . . 2 19 1 4 . 1 . 1 1 2 . 3 2 2 . . . 1 4 . 4 1 11 5 3 2 2 Traps | -11 -10 -10 -9 -9 -9 -8 -8 -8 -8 -8 -8 -8 -8 -8 -7 -7 -7 -7 -6 -6 -6 -6 -6 -6 -6 -6 -5 -5 -5 -5 -4 -4 -4 -4 -4 -3 -3 -3 -3 -2 ------- Run | Yrd Mat Min Mat Min Exi Min Mat Gar Mat Gar Mat Gar Mat Sto Fac Was Fac Gar Fac Was Fac Ext Cet Arc Hub Gar Fac Upp Upp Zhi Pro Fac Was Fac Gar Res Qua Sec Gar Res Traps Triggered 71 | . 3 . 2 . . . 3 1 4 5 1 3 . 1 2 . 1 . 5 . 2 1 . . 8 7 1 . . . . 2 . 4 3 5 . 2 3 2 Indirectly . | . . . . . . . . . . . . . . . . . . . . . . . . . . . . . . . . . . . . . . . . . Trap Hack Attempts . | . . . . . . . . . . . . . . . . . . . . . . . . . . . . . . . . . . . . . . . . . Triggered . | . . . . . . . . . . . . . . . . . . . . . . . . . . . . . . . . . . . . . . . . . Disarmed 26 | . . . . . . . . . . . . . . . . . . . . . 16 . . . 10 . . . . . . . . . . . . . . . Reprogrammed . | . . . . . . . . . . . . . . . . . . . . . . . . . . . . . . . . . . . . . . . . . Reused . | . . . . . . . . . . . . . . . . . . . . . . . . . . . . . . . . . . . . . . . . . Traps Extracted . | . . . . . . . . . . . . . . . . . . . . . . . . . . . . . . . . . . . . . . . . . Installed . | . . . . . . . . . . . . . . . . . . . . . . . . . . . . . . . . . . . . . . . . . Triggered 1 | . . . . . . . . . . . . . . . . . . . . . . . . . . . . 1 . . . . . . . . . . . . Objects Rigged 7 | . . . . . . . . . . . . . . . 2 . . . . . . . . . . . . . . . . 3 . 1 . 1 . . . . Exploded 3 | . . . . . . . . . . . . . . . 1 . . . . . . . . . . . . . . . . 1 . 1 . . . . . . Machines | -11 -10 -10 -9 -9 -9 -8 -8 -8 -8 -8 -8 -8 -8 -8 -7 -7 -7 -7 -6 -6 -6 -6 -6 -6 -6 -6 -5 -5 -5 -5 -4 -4 -4 -4 -4 -3 -3 -3 -3 -2 ---------- Run | Yrd Mat Min Mat Min Exi Min Mat Gar Mat Gar Mat Gar Mat Sto Fac Was Fac Gar Fac Was Fac Ext Cet Arc Hub Gar Fac Upp Upp Zhi Pro Fac Was Fac Gar Res Qua Sec Gar Res Machines Disabled 1214 | . 22 5 56 6 2 4 36 14 53 12 33 13 43 37 138 . 53 11 76 . 63 14 12 6 40 8 93 . . . 1 60 . 84 15 43 68 66 16 11 Max in Single Turn 8 | . 3 2 2 1 1 2 3 1 3 1 2 1 3 2 8 . 8 2 3 . 4 3 1 1 1 1 5 . . . 1 1 . 5 1 2 3 2 1 1 Garrison Access 33 | . . . . . . . . . . . . . . 1 3 . 2 . 4 . 3 . . . 1 . 4 . . . . 4 . 3 . 4 1 . . 3 Garrison Relay 37 | . . . . . . . . 8 . 6 . 5 . . . . . 4 . . . . . . . 4 . . . . . . . . 5 . . . 5 . Phase Generator 4 | . . . . . . . . . . 1 . . . . . . . 1 . . . . . . . . . . . . . . . . 1 . . . 1 . Network Hub 3 | . . . . . . . . . . . . . . . . . . . . . . . . . 3 . . . . . . . . . . . . . . . Energy Cycler 1 | . . . . . . . . . . . . . . . . . . . . . . 1 . . . . . . . . . . . . . . . . . . Machines Repaired . | . . . . . . . . . . . . . . . . . . . . . . . . . . . . . . . . . . . . . . . . . Machines Dismantled . | . . . . . . . . . . . . . . . . . . . . . . . . . . . . . . . . . . . . . . . . . Machines Sabotaged 8 | . 2 . . . . . . . . 1 . . . . . . . . . . . . . . 3 . . . . . . . . . 1 . . . 1 . Overloaded Fab Kills . | . . . . . . . . . . . . . . . . . . . . . . . . . . . . . . . . . . . . . . . . . Hacking | -11 -10 -10 -9 -9 -9 -8 -8 -8 -8 -8 -8 -8 -8 -8 -7 -7 -7 -7 -6 -6 -6 -6 -6 -6 -6 -6 -5 -5 -5 -5 -4 -4 -4 -4 -4 -3 -3 -3 -3 -2 --------- Run | Yrd Mat Min Mat Min Exi Min Mat Gar Mat Gar Mat Gar Mat Sto Fac Was Fac Gar Fac Was Fac Ext Cet Arc Hub Gar Fac Upp Upp Zhi Pro Fac Was Fac Gar Res Qua Sec Gar Res Machines Accessed 512 | . 9 . 17 . 2 . 15 4 17 4 16 4 12 12 37 . 38 3 41 . 36 11 3 . 16 1 38 1 1 7 . 37 . 31 2 35 19 24 2 17 Terminals 303 | . 6 . 12 . . . 9 4 12 4 11 4 8 9 18 . 17 3 21 . 19 11 3 . 14 1 16 . . . . 19 . 18 2 19 15 19 2 7 Fabricators 39 | . . . . . . . . . . . . . . . 6 . 4 . 4 . 4 . . . . . 6 . . . . 6 . 2 . 4 . . . 3 Repair Stations 14 | . 1 . 1 . . . 1 . . . . . . . 1 . 3 . 2 . . . . . . . 3 . . . . . . 1 . . . 1 . . Recycling Units 53 | . 2 . 2 . . . 2 . 2 . 2 . 2 2 5 . 6 . 6 . 5 . . . . . 6 . . . . 4 . 3 . 3 . . . 1 Scanalyzers 52 | . . . 2 . . . 2 . 2 . 2 . 2 . 4 . 4 . 4 . 4 . . . . . 4 . . . . 4 . 4 . 5 3 3 . 3 Garrison Access 40 | . . . . . . . 1 . 1 . 1 . . 1 3 . 4 . 4 . 4 . . . 2 . 3 . . . . 4 . 3 . 4 1 1 . 3 Total Hacks 2819 | . 47 . 85 . 6 . 70 13 89 20 117 21 69 60 228 . 164 10 197 . 189 37 6 . 133 10 219 1 1 46 . 216 . 186 30 177 123 122 15 112 Successful 2344 | . 41 . 67 . 6 . 54 7 76 10 76 12 49 41 178 . 144 8 166 . 155 29 6 . 115 6 193 1 1 46 . 200 . 166 21 160 100 99 14 97 Failed 466 | . 5 . 17 . . . 15 6 13 10 41 9 20 19 50 . 19 2 30 . 34 8 . . 18 4 25 . . . . 16 . 20 9 16 22 23 1 14 Catastrophic 129 | . . . 1 . . . 3 1 2 2 13 3 6 3 15 . 7 . 8 . 12 2 . . 9 . 12 . . . . 5 . 5 . 3 7 7 . 3 Database Lockouts 9 | . 1 . 1 . . . 1 . . . . . . . . . 1 . 1 . . . . . . . 1 . . . . . . . . 1 1 . . 1 Manual 1933 | . 31 . 62 . 1 . 52 10 62 16 93 18 63 47 162 . 112 9 117 . 124 27 1 . 102 10 145 . . . 1 144 . 127 28 106 81 96 13 73 Terminals 2136 | . 33 . 72 . . . 51 13 73 20 104 21 63 52 164 . 104 10 142 . 128 37 6 . 121 10 133 . . . . 155 . 156 30 123 112 110 15 78 Fabricators 221 | . . . . . . . . . . . . . . . 33 . 24 . 20 . 24 . . . . . 37 . . . . 34 . 6 . 25 . . . 18 Repair Stations 43 | . 8 . 6 . . . 6 . . . . . . . 3 . 6 . 2 . . . . . . . 10 . . . . . . 1 . . . 1 . . Recycling Units 181 | . 6 . 5 . . . 7 . 9 . 6 . 4 7 21 . 14 . 23 . 19 . . . . . 24 . . . . 16 . 8 . 10 . . . 2 Scanalyzers 64 | . . . 2 . . . 2 . 2 . 2 . 2 . 4 . 4 . 4 . 7 . . . . . 5 . . . . 4 . 4 . 7 6 5 . 4 Garrison Access 120 | . . . . . . . 4 . 5 . 5 . . 1 3 . 12 . 6 . 11 . . . 12 . 10 . . . . 7 . 11 . 12 5 6 . 10 Terminal Hacks 1078 | . 10 . 30 . 6 . 21 6 47 9 43 11 30 25 73 . 56 8 68 . 50 24 6 . 56 5 55 1 1 46 . 72 . 78 20 67 58 44 13 39 Record 53 | . . . . . 5 . . . . . . . . . 1 . . . . . . . 5 . . . . . . 34 . 3 . . . . 5 . . . Part Schematic 55 | . . . . . . . . . . . . . . 1 5 . 3 . 14 . 5 . . . 2 . 7 . . 4 . 2 . 4 . 4 4 . . . Robot Schematic 10 | . . . . . . . . . . . . . . . . . . . 1 . . . . . . . 2 . . . . 2 . . . 2 1 . . 2 Robot Analysis 83 | . 3 . 2 . . . 4 . 8 . 1 . 7 1 8 . 4 . 9 . 3 . . . 1 . 5 . . 4 . 5 . 3 . 3 6 2 . 4 Prototype ID Bank 158 | . 1 . 6 . . . 3 . 10 . 10 . 6 3 11 . 10 . 15 . 12 2 . . 8 . 9 . . 4 . 12 . 8 . 11 5 9 . 3 Open Door 31 | . . . . . . . . 1 . 1 . 1 . 5 . . . 1 1 . 1 8 1 . . . . 1 1 . . . . . 1 . 2 5 1 . Level Access Points 14 | . . . . . . . 1 . . . 1 . 1 1 1 . 1 . 1 . 1 . . . 1 . 1 . . . . 1 . 2 . 1 . . . . Branch Access Points 14 | . . . . . . . 1 . . . 1 . . . 1 . 1 . 1 . 1 . . . 1 . 1 . . . . 1 . 2 . 2 . . . 1 Emergency Access Points 46 | . . . 7 . . . . . 5 1 6 . . . 2 . 1 . 1 . . . . . 7 . 1 . . . . 2 . 6 1 3 . . 1 2 Machine Index 18 | . . . 1 . . . . . 1 . 1 . 2 1 1 . 1 . 1 . 1 . . . 1 . 1 . . . . 1 . 1 . 1 1 1 . 1 Terminal Index 1 | . . . . . . . . . 1 . . . . . . . . . . . . . . . . . . . . . . . . . . . . . . . Alert Level 23 | . 1 . 3 . . . 3 . 3 . 3 . 1 . 4 . 5 . . . . . . . . . . . . . . . . . . . . . . . Unreport Threat 329 | . 1 . 6 . . . 9 3 9 4 13 6 12 11 14 . 18 6 19 . 18 14 . . 17 5 21 . . . . 19 . 18 14 14 19 17 8 14 Locate Traps 69 | . 4 . 5 . . . . . 9 . 6 . 1 2 3 . 3 . 2 . 2 . . . 5 . 1 . . . . 3 . 7 1 9 . 3 . 3 Disarm Traps 5 | . . . . . . . . . . . . . . . . . . . . . 3 . . . 2 . . . . . . . . . . . . . . . Dispatch Records 16 | . . . . . . . . . . . . . . . . . . . . . . . . . . . . . . . . 1 . 5 . 4 2 1 . 3 Transport Status 1 | . . . . . . . . . . . . . . . 1 . . . . . . . . . . . . . . . . . . . . . . . . . Extermination Status 4 | . . . . . . . . . . . . . . . 2 . . . 1 . . . . . . . . . . . . 1 . . . . . . . . Reinforcement Status 2 | . . . . . . . . . . . . . . . . . . . . . . . . . 1 . . . . . . 1 . . . . . . . . Assault Status 5 | . . . . . . . . . . . . . . . 2 . . . 1 . . . . . . . . . . . . 2 . . . . . . . . Recall Investigation 41 | . . . . . . . . . . . . . . . 7 . 5 . . . . . . . 1 . 2 . . . . 4 . 9 . 4 4 2 . 3 Recall Extermination 11 | . . . . . . . . . . . . . . . . . 2 . . . 1 . . . . . . . . . . 2 . 1 . . 5 . . . Recall Reinforcements 9 | . . . . . . . . . . . . . . . . . . . . . . . . . . . . . . . . 3 . 4 . . 2 . . . Recall Assault 24 | . . . . . . . . . . . . . . . 6 . 2 . . . . . . . 1 . . . . . . 4 . 6 . 1 1 3 . . Hauler Manifests 16 | . . . . . . . . . 1 . 1 . . . 2 . . . . . 1 . . . . . 1 . . . . 1 . 2 . 2 1 1 . 3 Zone Layout 23 | . . . . . . . . . . . . . . . 2 . . . 1 . 1 . . . 8 . 3 . . . . 2 . . . 6 . . . . Garrison Registry 6 | . . . . . . . . 1 . 1 . 2 . . . . . . . . . . . . . . . . . . . . . . 1 . . . 1 . Patrol Navigation 7 | . . . . . . . . 1 . 2 . 1 . . . . . 1 . . . . . . . . . . . . . . . . 1 . . . 1 . Security Stations 3 | . . . . . . . . . . . . 1 . . . . . . . . . . . . . . . . . . . . . . 1 . . . 1 . Derelict Proto ID Bank 1 | . . . . . 1 . . . . . . . . . . . . . . . . . . . . . . . . . . . . . . . . . . . Fabricator Hacks 110 | . . . . . . . . . . . . . . . 16 . 12 . 10 . 12 . . . . . 19 . . . . 17 . 2 . 13 . . . 9 Network Status 42 | . . . . . . . . . . . . . . . 6 . 4 . 4 . 4 . . . . . 7 . . . . 7 . 2 . 5 . . . 3 Load Schematic 33 | . . . . . . . . . . . . . . . 5 . 4 . 3 . 4 . . . . . 6 . . . . 4 . . . 4 . . . 3 Build 35 | . . . . . . . . . . . . . . . 5 . 4 . 3 . 4 . . . . . 6 . . . . 6 . . . 4 . . . 3 Repair Station Hacks 26 | . 7 . 4 . . . 3 . . . . . . . 2 . 3 . . . . . . . . . 7 . . . . . . . . . . . . . Scan Component 3 | . . . . . . . . . . . . . . . . . . . . . . . . . . . 3 . . . . . . . . . . . . . Repair 3 | . . . . . . . . . . . . . . . . . . . . . . . . . . . 3 . . . . . . . . . . . . . Refit 20 | . 7 . 4 . . . 3 . . . . . . . 2 . 3 . . . . . . . . . 1 . . . . . . . . . . . . . Recycling Unit Hacks 101 | . 2 . 3 . . . 5 . 5 . 4 . 2 4 13 . 8 . 9 . 11 . . . . . 13 . . . . 9 . 5 . 7 . . . 1 Report Inventory 56 | . 1 . 1 . . . 2 . 3 . 2 . 2 3 5 . 6 . 6 . 6 . . . . . 7 . . . . 5 . 3 . 3 . . . 1 Retrieve Matter 24 | . . . . . . . 1 . 2 . 1 . . 1 3 . 2 . 3 . 2 . . . . . 4 . . . . 2 . 1 . 2 . . . . Retrieve Components 21 | . 1 . 2 . . . 2 . . . 1 . . . 5 . . . . . 3 . . . . . 2 . . . . 2 . 1 . 2 . . . . Scanalyzer 5 | . . . . . . . . . . . . . . . . . . . . . 2 . . . . . 1 . . . . . . . . 2 . . . . Insert Component 3 | . . . . . . . . . . . . . . . . . . . . . 1 . . . . . 1 . . . . . . . . 1 . . . . Analyze 2 | . . . . . . . . . . . . . . . . . . . . . 1 . . . . . . . . . . . . . . 1 . . . . Garrison Access Hacks 43 | . . . . . . . 1 . 2 . 2 . . . . . 4 . 2 . 4 . . . 5 . 3 . . . . 4 . 5 . 5 1 2 . 3 Unlock Access 8 | . . . . . . . 1 . 1 . 1 . . . . . 2 . . . . . . . 1 . . . . . . . . 1 . . . 1 . . Coupler Status 35 | . . . . . . . . . 1 . 1 . . . . . 2 . 2 . 4 . . . 4 . 3 . . . . 4 . 4 . 5 1 1 . 3 Unauthorized Hacks 981 | . 22 . 30 . . . 24 1 22 1 27 1 17 12 74 . 61 . 77 . 76 5 . . 54 1 95 . . . . 98 . 76 1 66 41 53 1 45 Terminals 642 | . 19 . 25 . . . 16 1 13 1 20 1 13 8 41 . 28 . 43 . 44 5 . . 47 1 52 . . . . 67 . 58 1 39 31 43 1 24 Track 134 | . 4 . 1 . . . 2 . . . 3 . 1 1 8 . 4 . 9 . 9 . . . 10 . 14 . . . . 19 . 15 . 8 9 12 . 5 Assimilate 64 | . . . . . . . 1 . . . 2 . 1 1 6 . 3 . 5 . 8 . . . 4 . 5 . . . . 7 . 8 . 4 2 2 . 5 Botnet 244 | . 4 . 11 . . . 8 . 12 . 10 . 8 4 17 . 17 . 19 . 17 3 . . 14 . 16 . . . . 19 . 18 . 16 10 14 . 7 Detonate 6 | . . . . . . . . . . . 1 . . . 1 . . . . . . . . . 1 . . . . . . 1 . 1 . 1 . . . . Disrupt 135 | . 4 . 3 . . . 3 . . . 3 . 2 1 8 . 3 . 8 . 7 . . . 10 . 14 . . . . 19 . 15 . 9 9 13 . 4 Operators 30 | . 1 . . . . . 2 . 1 . 1 . 1 1 1 . 1 . 2 . 3 1 . . 2 . 3 . . . . 2 . 1 . 1 1 2 . 3 Sabotage 21 | . 6 . 2 . . . . 1 . 1 . 1 . . . . . . . . . 1 . . 6 1 . . . . . . . . 1 . . . 1 . Search 8 | . . . 8 . . . . . . . . . . . . . . . . . . . . . . . . . . . . . . . . . . . . . Fabricators 111 | . . . . . . . . . . . . . . . 17 . 12 . 10 . 12 . . . . . 18 . . . . 17 . 4 . 12 . . . 9 Report 38 | . . . . . . . . . . . . . . . 6 . 4 . 3 . 4 . . . . . 6 . . . . 6 . 2 . 4 . . . 3 Prioritize 34 | . . . . . . . . . . . . . . . 5 . 4 . 3 . 4 . . . . . 6 . . . . 5 . . . 4 . . . 3 Haulers 38 | . . . . . . . . . . . . . . . 5 . 4 . 4 . 4 . . . . . 6 . . . . 6 . 2 . 4 . . . 3 Download 1 | . . . . . . . . . . . . . . . 1 . . . . . . . . . . . . . . . . . . . . . . . . . Repair Stations 14 | . 1 . 1 . . . 1 . . . . . . . 1 . 3 . 2 . . . . . . . 3 . . . . . . 1 . . . 1 . . Mechanics 13 | . . . 1 . . . 1 . . . . . . . 1 . 3 . 2 . . . . . . . 3 . . . . . . 1 . . . 1 . . Patch 1 | . 1 . . . . . . . . . . . . . . . . . . . . . . . . . . . . . . . . . . . . . . . Recycling Units 78 | . 2 . 2 . . . 2 . 4 . 2 . 2 3 8 . 6 . 14 . 8 . . . . . 11 . . . . 7 . 3 . 3 . . . 1 Reject 8 | . . . . . . . . . . . . . . . 1 . . . 3 . 1 . . . . . 2 . . . . 1 . . . . . . . . Recyclers 8 | . . . . . . . . . 1 . . . . . 1 . . . 2 . 1 . . . . . 2 . . . . 1 . . . . . . . . Mask 12 | . . . . . . . . . 1 . . . . 1 2 . . . 3 . 1 . . . . . 2 . . . . 2 . . . . . . . . Tunnel 50 | . 2 . 2 . . . 2 . 2 . 2 . 2 2 4 . 6 . 6 . 5 . . . . . 5 . . . . 3 . 3 . 3 . . . 1 Scanalyzers 59 | . . . 2 . . . 2 . 2 . 2 . 2 . 4 . 4 . 4 . 5 . . . . . 4 . . . . 4 . 4 . 5 6 5 . 4 Researchers 8 | . . . . . . . . . . . . . . . . . . . . . 1 . . . . . . . . . . . . . . 1 3 2 . 1 Extract 51 | . . . 2 . . . 2 . 2 . 2 . 2 . 4 . 4 . 4 . 4 . . . . . 4 . . . . 4 . 4 . 4 3 3 . 3 Garrison Access 77 | . . . . . . . 3 . 3 . 3 . . 1 3 . 8 . 4 . 7 . . . 7 . 7 . . . . 3 . 6 . 7 4 4 . 7 Broadcast 15 | . . . . . . . 1 . 1 . 1 . . . . . 2 . . . 1 . . . 2 . 2 . . . . . . 1 . 1 1 1 . 1 Restock 2 | . . . . . . . . . . . . . . . . . . . . . . . . . . . . . . . . . . 1 . . . . . 1 Intercept 14 | . . . . . . . 1 . 1 . 1 . . . . . 2 . . . 1 . . . 2 . 1 . . . . . . 1 . 1 1 1 . 1 Watchers 14 | . . . . . . . 1 . 1 . 1 . . . . . 2 . . . 1 . . . 2 . 1 . . . . . . 1 . 1 1 1 . 1 Jam 26 | . . . . . . . . . . . . . . 1 3 . 2 . 4 . 3 . . . 1 . 3 . . . . 2 . 2 . 3 . . . 2 Eject 6 | . . . . . . . . . . . . . . . . . . . . . 1 . . . . . . . . . . 1 . . . 1 1 1 . 1 Data Cores Recovered 9 | . 2 . 4 . . . 1 . . . . . . . . . . . . . . . . . . . . . . . . 1 . . . . . 1 . . Used 4 | . . . 3 . . . . . . . . . . . . . . . . . . . . . . . . . . . . 1 . . . . . . . . Hacking Detections 310 | . 6 . 12 . . . 12 3 14 4 10 2 8 4 22 . 27 2 22 . 21 5 1 . 14 1 20 . . . . 23 . 18 . 21 10 16 1 11 Full Trace Events 49 | . . . 1 . . . . 1 2 1 . 1 . 1 6 . 4 . 3 . 4 . . . 2 . 6 . . . . 4 . 2 . 5 1 1 . 4 Feedback Events 2 | . . . . . . . . . . . . . . . . . . . . . . . . . . . . . . . . . . . . 2 . . . . Corruption 1 | . . . . . . . . . . . . . . . . . . . . . . . . . . . . . . . . . . . . 1 . . . . Hackware Fried 1 | . . . . . . . . . . . . . . . . . . . . . . . . . . . . . . . . . . . . 1 . . . . Feedback Blocked 1 | . . . . . . . . . . . . . . 1 . . . . . . . . . . . . . . . . . . . . . . . . . . Robot Schematics Acquired 13 | . . . . . . . . . . . . . . . . . . . 1 . . . . . . . 2 . . . . 2 . . . 2 2 2 . 2 Robots Built . | . . . . . . . . . . . . . . . . . . . . . . . . . . . . . . . . . . . . . . . . . Authchips . | . . . . . . . . . . . . . . . . . . . . . . . . . . . . . . . . . . . . . . . . . Time . | . . . . . . . . . . . . . . . . . . . . . . . . . . . . . . . . . . . . . . . . . Total Robot Build Rating . | . . . . . . . . . . . . . . . . . . . . . . . . . . . . . . . . . . . . . . . . . Part Schematics Acquired 300 | . . . 6 . . . 2 . 10 . 9 . 11 1 30 . 19 . 35 . 21 . . . 1 . 23 . . 4 . 23 . 22 . 15 28 16 . 24 Parts Built 40 | . . . . . . . . . . . . . . . 5 . 4 . 3 . 5 . . . . . 6 . . . . 9 . . . 5 . . . 3 Authchips . | . . . . . . . . . . . . . . . . . . . . . . . . . . . . . . . . . . . . . . . . . Time 1752 | . . . . . . . . . . . . . . . 215 . 131 . 110 . 184 . . . . . 370 . . . . 331 . . . 152 . . . 259 Total Part Build Rating 284 | . . . . . . . . . . . . . . . 29 . 24 . 19 . 32 . . . . . 42 . . . . 72 . . . 39 . . . 27 Parts Repaired 3 | . . . . . . . . . . . . . . . . . . . . . . . . . . . 3 . . . . . . . . . . . . . Time 136 | . . . . . . . . . . . . . . . . . . . . . . . . . . . 136 . . . . . . . . . . . . . Parts Recycled . | . . . . . . . . . . . . . . . . . . . . . . . . . . . . . . . . . . . . . . . . . Recycled Matter . | . . . . . . . . . . . . . . . . . . . . . . . . . . . . . . . . . . . . . . . . . Retrieved Matter 4672 | . . . . . . . 85 . 116 . 105 . . 124 190 . 1111 . 477 . 533 . . . . . 444 . . . . 354 . 50 . 1083 . . . . Retrieved Components 159 | . 9 . 20 . . . 14 . . . 10 . . . 43 . . . . . 14 . . . . . 13 . . . . 14 . 2 . 20 . . . . Parts Scanalyzed 2 | . . . . . . . . . . . . . . . . . . . . . 1 . . . . . . . . . . . . . . 1 . . . . Part Schematics Acquired 2 | . . . . . . . . . . . . . . . . . . . . . 1 . . . . . . . . . . . . . . 1 . . . . Parts Damaged 1 | . . . . . . . . . . . . . . . . . . . . . . . . . . . . . . . . . . . . 1 . . . . Bothacking | -11 -10 -10 -9 -9 -9 -8 -8 -8 -8 -8 -8 -8 -8 -8 -7 -7 -7 -7 -6 -6 -6 -6 -6 -6 -6 -6 -5 -5 -5 -5 -4 -4 -4 -4 -4 -3 -3 -3 -3 -2 ------------ Run | Yrd Mat Min Mat Min Exi Min Mat Gar Mat Gar Mat Gar Mat Sto Fac Was Fac Gar Fac Was Fac Ext Cet Arc Hub Gar Fac Upp Upp Zhi Pro Fac Was Fac Gar Res Qua Sec Gar Res Used RIF Installer 1 | . . . . . . . . . . . . . . . . . . 1 . . . . . . . . . . . . . . . . . . . . . . Robots Hacked 10 | . . . . . . . . . . . . . . . 1 . . . 2 . 1 . . . . . 1 . . . . 2 . . . 1 . 1 . 1 Non-combat 10 | . . . . . . . . . . . . . . . 1 . . . 2 . 1 . . . . . 1 . . . . 2 . . . 1 . 1 . 1 Combat . | . . . . . . . . . . . . . . . . . . . . . . . . . . . . . . . . . . . . . . . . . Robot Hacks Applied 132 | . . . . . . . . . . . . . . . 1 . . . 32 . 8 . . . . . 23 . . . . 5 . . . 32 . 8 . 23 parse_system 1 | . . . . . . . . . . . . . . . . . . . 1 . . . . . . . . . . . . . . . . . . . . . find_chute 3 | . . . . . . . . . . . . . . . 1 . . . 1 . . . . . . . . . . . . 1 . . . . . . . . purge_threat 125 | . . . . . . . . . . . . . . . . . . . 29 . 8 . . . . . 22 . . . . 4 . . . 31 . 8 . 23 locate_traps 1 | . . . . . . . . . . . . . . . . . . . . . . . . . . . 1 . . . . . . . . . . . . . formatsys_low 2 | . . . . . . . . . . . . . . . . . . . 1 . . . . . . . . . . . . . . . . 1 . . . . Relay Couplers Released 81 | . . . . . . . . 11 . 9 . 10 . . . . . 7 1 . 2 . . . 7 7 2 . . . . 1 . . 7 2 1 1 9 4 Ejected 8 | . . . . . . . . . . . . . . . . . . . . . 1 . . . . . . . . . . 1 . . . 2 1 1 . 2 Machine Destruction 65 | . . . . . . . . 11 . 9 . 9 . . . . . 7 . . . . . . 2 7 2 . . . . . . . 7 . . . 9 2 Programmers 8 | . . . . . . . . . . . . 1 . . . . . . 1 . 1 . . . 5 . . . . . . . . . . . . . . . Attached 23 | . . . . . . . . . . . . . . . . . . 2 2 . 2 . . . . 2 2 . . . . 1 . . 3 3 . 2 2 2 Fabnet Peak Effective % . | . . . . . . . . . . . . . . . . . . . . . . . . . . . . . . . . . . . . . . . . . Robots Rewired . | . . . . . . . . . . . . . . . . . . . . . . . . . . . . . . . . . . . . . . . . . Allies Hacked 2 | . . . . . . . . . . . . . . . 1 . . . . . . . . . . . . . . . . . . . . . 1 . . . Hacks Repelled 1 | . . . . . . . . . . . . . . . . . . . . . 1 . . . . . . . . . . . . . . . . . . . Allies | -11 -10 -10 -9 -9 -9 -8 -8 -8 -8 -8 -8 -8 -8 -8 -7 -7 -7 -7 -6 -6 -6 -6 -6 -6 -6 -6 -5 -5 -5 -5 -4 -4 -4 -4 -4 -3 -3 -3 -3 -2 -------- Run | Yrd Mat Min Mat Min Exi Min Mat Gar Mat Gar Mat Gar Mat Sto Fac Was Fac Gar Fac Was Fac Ext Cet Arc Hub Gar Fac Upp Upp Zhi Pro Fac Was Fac Gar Res Qua Sec Gar Res Total Allies 93 | . . . . . . . 1 2 . . 2 . 1 2 1 . 3 3 5 20 10 10 5 . 2 . 3 . . . . 4 . 4 2 2 2 1 3 5 Largest Group 23 | . . . . . . . 1 2 . . 1 1 2 3 2 . 3 5 7 23 9 6 10 . 2 . 2 1 . . . 3 1 3 2 1 2 1 2 4 Highest-Rated Group 833 | . . . . . . . 10 70 . . 10 10 30 71 35 . 62 252 144 833 225 319 768 . 36 . 52 26 . . . 61 26 81 97 26 90 21 102 183 Highest-Rated Ally 159 | . . . . . . . 10 39 . . 10 10 21 31 26 . 26 95 26 46 31 159 159 . 26 . 26 26 . . . 26 26 45 51 26 45 21 95 46 Total Orders 460 | . . . . . . . 6 4 . . 10 10 30 15 31 . 37 19 65 1 71 12 2 . 23 . 24 2 . . . 43 2 12 . 7 22 3 . 9 STAY 243 | . . . . . . . 3 2 . . 5 5 15 8 15 . 19 10 34 1 40 7 1 . 12 . 13 1 . . . 23 1 6 . 4 11 2 . 5 ROAM 2 | . . . . . . . . . . . . . . . 1 . . . 1 . . . . . . . . . . . . . . . . . . . . . FOLLOW 215 | . . . . . . . 3 2 . . 5 5 15 7 15 . 18 9 30 . 31 5 1 . 11 . 11 1 . . . 20 1 6 . 3 11 1 . 4 Ally Attacks 364 | . . . . . . . . 2 . . . . . 27 . . . 6 . 18 . 27 230 . . . . . . . . . . . 15 . . . 24 15 Total Damage 9353 | . . . . . . . . 16 . . . . . 396 . . . 265 . 307 . 546 6735 . . . . . . . . . . . 401 . . . 535 152 Kills 68 | . . . . . . . . . . . . . . 4 . . . 2 . 1 . 4 49 . . . . . . . . . . . 5 . . . 1 2 Allies Corrupted . | . . . . . . . . . . . . . . . . . . . . . . . . . . . . . . . . . . . . . . . . . Allies Melted . | . . . . . . . . . . . . . . . . . . . . . . . . . . . . . . . . . . . . . . . . . Intel | -11 -10 -10 -9 -9 -9 -8 -8 -8 -8 -8 -8 -8 -8 -8 -7 -7 -7 -7 -6 -6 -6 -6 -6 -6 -6 -6 -5 -5 -5 -5 -4 -4 -4 -4 -4 -3 -3 -3 -3 -2 ------- Run | Yrd Mat Min Mat Min Exi Min Mat Gar Mat Gar Mat Gar Mat Sto Fac Was Fac Gar Fac Was Fac Ext Cet Arc Hub Gar Fac Upp Upp Zhi Pro Fac Was Fac Gar Res Qua Sec Gar Res Robot Analysis Total 81 | . 3 . 2 . . . 4 . 8 . 1 . 7 1 8 . 4 . 9 . 3 . . . 1 . 5 . . 4 . 5 . 3 . 3 6 1 . 3 Derelict Logs Recovered 10 | . . 2 . 2 . . . . . . . . . . . . . . . . . . . . . . . 2 2 . 2 . . . . . . . . . Drone Launches . | . . . . . . . . . . . . . . . . . . . . . . . . . . . . . . . . . . . . . . . . . Drone Recoveries . | . . . . . . . . . . . . . . . . . . . . . . . . . . . . . . . . . . . . . . . . . Exploration | -11 -10 -10 -9 -9 -9 -8 -8 -8 -8 -8 -8 -8 -8 -8 -7 -7 -7 -7 -6 -6 -6 -6 -6 -6 -6 -6 -5 -5 -5 -5 -4 -4 -4 -4 -4 -3 -3 -3 -3 -2 ------------- Run | Yrd Mat Min Mat Min Exi Min Mat Gar Mat Gar Mat Gar Mat Sto Fac Was Fac Gar Fac Was Fac Ext Cet Arc Hub Gar Fac Upp Upp Zhi Pro Fac Was Fac Gar Res Qua Sec Gar Res Turns Passed 133208 | 1187 1680 6709 3728 6707 260 1728 1434 663 1527 473 1009 439 4191 6407 3929 106 7605 817 2929 6821 2935 1759 6439 6400 12935 1601 3038 408 408 63 1574 2852 6414 2457 695 5325 12833 2324 834 1565 Spaces Moved 98772 | 41 2374 1124 3694 971 562 1016 2261 977 2939 663 1938 675 2545 1047 6462 119 5605 930 5973 447 5768 1987 1973 249 5938 1195 5585 1008 1120 144 1731 4834 384 4412 1279 5899 6217 3296 1188 2202 Core 213 | 36 64 . . . . . 1 . 15 . . . . . . . . . . . . . . . . 36 . . . . . . 17 . 1 4 5 25 . 9 Treads 8 | 5 3 . . . . . . . . . . . . . . . . . . . . . . . . . . . . . . . . . . . . . . . Legs . | . . . . . . . . . . . . . . . . . . . . . . . . . . . . . . . . . . . . . . . . . Wheels . | . . . . . . . . . . . . . . . . . . . . . . . . . . . . . . . . . . . . . . . . . Hover 1 | . . . . . . . . . . . . . . . . . . . . . . . . . . . 1 . . . . . . . . . . . . . Flight 98550 | . 2307 1124 3694 971 562 1016 2260 977 2924 663 1938 675 2545 1047 6462 119 5605 930 5973 447 5768 1987 1973 249 5938 1159 5584 1008 1120 144 1731 4834 367 4412 1278 5895 6212 3271 1188 2193 Fastest Speed 13 | 50 34 34 26 26 26 26 26 26 26 28 26 26 26 26 26 27 26 26 17 27 14 14 14 17 17 27 27 32 32 32 28 26 26 13 13 13 13 13 16 16 Average Speed 27 | 75 39 34 28 26 26 26 27 26 30 28 26 26 26 26 27 27 26 26 26 27 26 25 25 26 27 42 31 32 32 32 31 30 94 24 22 22 22 24 25 28 Slowest Speed 200 | 160 160 34 109 26 26 26 150 26 150 28 28 26 26 26 31 27 27 27 27 29 27 26 109 29 110 150 120 32 32 32 32 105 150 30 150 150 150 150 26 200 Overloaded Moves 3557 | . . . . . . . . . . . . . . . . . . . 44 . 16 36 55 6 198 . 805 . . . 1 340 56 908 39 614 109 154 43 133 Propulsion Burnouts . | . . . . . . . . . . . . . . . . . . . . . . . . . . . . . . . . . . . . . . . . . Robots Hopped 1708 | . 47 19 47 23 . 17 42 . 44 . 44 . 53 33 100 4 73 1 158 1 103 47 4 4 216 . 74 3 5 . . 151 . 97 . 99 119 42 4 34 Cave-ins Triggered . | . . . . . . . . . . . . . . . . . . . . . . . . . . . . . . . . . . . . . . . . . Teleports 2 | . . . . . . . . . . . . . . . . . . . . . . . . . . . . . . . . . . . 1 . 1 . . . Exploration Rate (%) 89 | 5 99 102 99 99 71 101 99 97 99 89 99 82 100 96 84 77 94 93 95 97 91 98 96 98 99 84 93 98 99 62 99 83 96 89 99 94 99 97 93 38 Regions Visited 40 Branch Regions 15 Pre-discovered Areas 53 | . 2 1 2 1 1 . 2 . 2 . 2 . 2 2 4 . 5 . 6 . 3 . . . . . 4 . . 3 . 3 . 4 . 3 . . . 1 Known Exits Taken 15 | . 1 1 . . . . 1 . 1 . 1 . 1 1 . . 1 . . . 1 . . . 1 . 1 . . . 1 . . 1 . 1 . 1 . . Unknown Exits Taken 12 | 1 . . 1 1 1 1 . . . . . . . . . . . . . . . 1 1 1 . . . 1 1 1 . . . . . . 1 . . . Scrap Searched 15 | . . 1 . 2 . 1 . . . . . . . . . . . . . . . . . . . . . 2 4 . 5 . . . . . . . . . Spaces Dug 56 | . . . . . . . 30 . . . . . 2 5 . . . . . . . . 1 . 2 . . . . . . 4 . 4 . 2 1 . . 5 Terrain Destroyed 3672 | . 106 36 280 12 . 15 146 . 334 . 314 . 307 74 902 . 58 69 34 . 57 16 6 . 18 . 50 . . . . 81 5 378 1 141 80 20 10 122 Melee . | . . . . . . . . . . . . . . . . . . . . . . . . . . . . . . . . . . . . . . . . . Projectile 441 | . . . . . . . . . . . . . 4 20 3 . . . . . . . 6 . 18 . . . . . . 62 5 117 1 29 33 20 8 115 AOE 3229 | . 106 36 280 12 . 15 146 . 334 . 314 . 303 54 899 . 58 69 34 . 57 16 . . . . 50 . . . . 19 . 261 . 112 47 . . 7 Terrain Rammed . | . . . . . . . . . . . . . . . . . . . . . . . . . . . . . . . . . . . . . . . . . Walls Destroyed . | . . . . . . . . . . . . . . . . . . . . . . . . . . . . . . . . . . . . . . . . . Machines Disabled . | . . . . . . . . . . . . . . . . . . . . . . . . . . . . . . . . . . . . . . . . . Actions | -11 -10 -10 -9 -9 -9 -8 -8 -8 -8 -8 -8 -8 -8 -8 -7 -7 -7 -7 -6 -6 -6 -6 -6 -6 -6 -6 -5 -5 -5 -5 -4 -4 -4 -4 -4 -3 -3 -3 -3 -2 --------- Run | Yrd Mat Min Mat Min Exi Min Mat Gar Mat Gar Mat Gar Mat Sto Fac Was Fac Gar Fac Was Fac Ext Cet Arc Hub Gar Fac Upp Upp Zhi Pro Fac Was Fac Gar Res Qua Sec Gar Res Total 194805 | 1180 2819 7364 5874 7387 633 2429 2693 1232 3325 883 2231 875 5829 7008 8129 156 11379 1423 6831 7114 6650 3026 7635 6549 16664 2110 6372 1050 1142 161 2673 5568 6428 5233 1573 9350 17104 4338 1570 2815 Wait 85656 | 1128 268 6203 1794 6418 45 1408 153 82 72 30 72 45 3016 5763 1154 . 5333 362 385 6611 379 899 5329 6251 10401 580 231 3 . . 856 280 6019 336 71 2728 10436 396 38 81 Move 95477 | 40 2279 1085 3602 927 561 981 2178 976 2855 662 1852 674 2444 987 6265 112 5462 927 5674 444 5575 1902 1967 240 5536 1193 5437 1001 1109 143 1730 4549 383 4225 1278 5704 5990 3215 1178 2135 Hop 1547 | . 47 19 44 20 . 17 40 . 39 . 41 . 47 26 97 2 69 1 141 1 89 37 1 4 185 . 73 3 5 . . 134 . 88 . 95 107 38 4 33 Pick Up 76 | . . . . . . . . . . . . . . . . . . 3 3 . 5 . . 1 6 10 5 . . 3 . 1 . . 2 15 9 8 1 4 Fast Attach 370 | 6 17 . 24 3 . . 18 2 17 3 6 . 7 1 13 2 11 6 19 4 24 . 5 4 7 12 30 2 2 4 6 14 5 8 5 43 10 22 2 6 Attach 30 | . . . . . . . . . . . . . . . . . . . 2 . 5 . . 1 . 2 2 . . 2 . 2 . . 1 3 4 5 . 1 Detach 81 | . 2 . 1 . . . 1 1 3 . . . 1 . 2 1 5 2 4 . 7 . . 1 4 3 5 . 1 3 . 5 . 1 2 13 5 5 2 1 Swap 197 | . 4 1 9 . . . 3 2 9 . 1 . 1 2 7 . 3 . 6 . 5 . 3 3 3 7 19 . . 1 . 10 2 18 2 25 9 26 3 13 Drop 393 | . 21 1 31 3 . . 17 2 21 3 7 . 5 3 16 1 10 5 18 12 25 . 5 5 11 21 31 2 1 5 6 14 5 6 2 36 13 19 2 8 Fire 7318 | 6 145 43 311 12 23 19 228 107 273 83 207 79 264 182 495 38 340 91 388 42 349 114 210 22 271 149 351 24 13 . 48 368 11 346 90 431 345 366 152 282 Melee 75 | . 2 . 1 . . . 1 . 1 . 1 . 1 . . . . . 32 . 8 . . . . . . . . . . 5 . . . . . . . 23 Ram . | . . . . . . . . . . . . . . . . . . . . . . . . . . . . . . . . . . . . . . . . . Kick . | . . . . . . . . . . . . . . . . . . . . . . . . . . . . . . . . . . . . . . . . . Crush . | . . . . . . . . . . . . . . . . . . . . . . . . . . . . . . . . . . . . . . . . . Escape Stasis 569 | . . . . . . . . 18 . 72 . 54 . . . . 13 . 18 . . 31 . . 108 92 . . . . . . . 18 53 18 . . 74 . Rewire 2 | . . . . . . . . 1 . . . . . . 1 . . . . . . . . . . . . . . . . . . . . . . . . . Trap . | . . . . . . . . . . . . . . . . . . . . . . . . . . . . . . . . . . . . . . . . . Miscellaneous 3014 | . 34 12 57 4 4 4 54 41 35 30 44 23 43 44 79 . 133 26 141 . 179 43 115 17 132 41 188 15 11 . 27 186 3 187 67 239 176 238 114 228 Route ------- -11/Scrapyard -10/Materials (discovered 6 exits: *Mat x3 / *Min x2 / [*Sub]) -10/Mines (discovered 3 exits: *Mat x2 / [*Sub]) -9/Materials (discovered 4 exits: *Mat x3 / [*Min]) -9/Mines (discovered 3 exits: *Mat x2 / *Exi) -9/Exiles (discovered 2 exits: [*Min x2]) -8/Mines (discovered 2 exits: *Mat x2) -8/Materials (discovered 5 exits: *Fac x3 / *Sto / Gar) -8/Garrison (discovered 3 exits: *Mat x3) -8/Materials (discovered 6 exits: *Fac x3 / *Sto x2 / Gar) -8/Garrison (discovered 3 exits: *Mat x3) -8/Materials (discovered 6 exits: *Fac x3 / *Sto x2 / Gar) -8/Garrison (discovered 3 exits: *Mat x3) -8/Materials (discovered 4 exits: *Fac x3 / *Sto) -8/Storage (discovered 2 exits: *Fac / [*Rec]) -7/Factory (discovered 6 exits: *Fac x4 / *Low x2) -7/Waste -7/Factory (discovered 8 exits: *Fac x4 / *Low x2 / Gar / Gar) -7/Garrison (discovered 3 exits: *Fac x3) -6/Factory (discovered 8 exits: *Fac x4 / *Low x2 / *Ext x2) -6/Waste -6/Factory (discovered 8 exits: *Fac x4 / *Low x2 / *Ext x2) -6/Extension (discovered 3 exits: *Fac x2 / *Cet) -6/Cetus (discovered 3 exits: *Fac x2 / *Arc) -6/Archives (discovered 3 exits: *Fac / *Hub x2) -6/Hub_04(d) (discovered 5 exits: *Fac x4 / Gar) -6/Garrison (discovered 3 exits: *Fac x3) -5/Factory (discovered 6 exits: *Fac x4 / *Upp x2) -5/Upper Caves -5/Upper Caves (discovered 2 exits: *Fac / *Zhi) -5/Zhirov -4/Proximity Caves -4/Factory (discovered 6 exits: *Res x4 / *Upp x2) -4/Waste -4/Factory (discovered 7 exits: *Res x4 / *Upp x2 / Gar) -4/Garrison (discovered 3 exits: *Res x3) -3/Research (discovered 6 exits: *Res x3 / *Arm / *Qua x2) -3/Quarantine (discovered 2 exits: *Res / *Sec) -3/Section 7 (discovered 2 exits: *Res / Gar) -3/Garrison (discovered 3 exits: *Res x3) -2/Research (discovered 2 exits: *Tes x2) History --------- Turn | Location | Event 9 | -11/Scrapyard | Discovered new exit (range 16) 10 | -11/Scrapyard | Upgraded with Weapon slot (x2) 1170 | -11/Scrapyard | Assembled infested the area 1188 | -11/Scrapyard | Entered Materials 1189 | -10/Materials | Build established: Gunner 1353 | -10/Materials | Discovered new exit (range 13) 1386 | -10/Materials | Discovered new exit (range 10) 1436 | -10/Materials | Core integrity fell below 50% 1445 | -10/Materials | Reached level 2 1466 | -10/Materials | Discovered new exit (range 15) 1672 | -10/Materials | Reached level 3 1682 | -10/Materials | Central database locked down 1685 | -10/Materials | Discovered new exit (range 4) 1688 | -10/Materials | Derelicts attacked the area 1722 | -10/Materials | Discovered new exit (range 9) 1807 | -10/Materials | Discovered new exit (range 13) 1967 | -10/Materials | Build established: Hacker-Gunner 2131 | -10/Materials | Reached level 4 2134 | -10/Materials | Upgraded with Propulsion slot (x1) 2134 | -10/Materials | Upgraded with Utility slot (x1) 2294 | -10/Materials | Reached level 5 2437 | -10/Materials | Upgraded with Propulsion slot (x1) 2523 | -10/Materials | Upgraded with Utility slot (x1) 2534 | -10/Materials | Identified exit to Mines 2548 | -10/Materials | Identified exit to Materials 2868 | -10/Materials | Entered Mines 2870 | -10/Mines | Reached level 6 2953 | -10/Mines | Learned Materials security intel 2990 | -10/Mines | Discovered exit to Materials (range 10) 3053 | -10/Mines | Learned Materials garrison access intel 3091 | -10/Mines | Learned location of Storage (-8) 3115 | -10/Mines | Discovered exit to Materials (range 14) 3167 | -10/Mines | Found a hidden stash of uninstalled traps 9457 | -10/Mines | Discovered new exit (range 6) 9577 | -10/Mines | Entered Materials 9579 | -9/Materials | Reached level 7 9658 | -9/Materials | Reached level 8 9769 | -9/Materials | Upgraded with Utility slot (x1) 9904 | -9/Materials | Reached level 9 9958 | -9/Materials | Central database locked down 9982 | -9/Materials | Upgraded with Propulsion slot (x1) 9982 | -9/Materials | Upgraded with Weapon slot (x1) 10043 | -9/Materials | Discovered new exit (range 14) 10378 | -9/Materials | Build established: Hacker-Sprinter 10777 | -9/Materials | First assault squad dispatched 10833 | -9/Materials | Upgraded with Utility slot (x1) 10883 | -9/Materials | Reached level 10 10903 | -9/Materials | Discovered new exit (range 4) 11006 | -9/Materials | Discovered new exit (range 6) 11111 | -9/Materials | Upgraded with Utility slot (x1) 11290 | -9/Materials | Discovered new exit (range 16) 11875 | -9/Materials | Reached level 11 12222 | -9/Materials | Sterilization system engaged 12222 | -9/Materials | Non-combat units ordered to evacuate 12322 | -9/Materials | Combat units ordered to evacuate 12389 | -9/Materials | Destroyed 18 combat bots 12522 | -9/Materials | Ambient heat levels rising (+10) 12672 | -9/Materials | Ambient heat levels rising (+10) 12822 | -9/Materials | Ambient heat levels rising (+10) 12972 | -9/Materials | Ambient heat levels rising (+10) 13122 | -9/Materials | Ambient heat levels rising (+10) 13134 | -9/Materials | Build established: Hacker-Gunner 13272 | -9/Materials | Ambient heat levels rising (+10) 13305 | -9/Materials | Entered Mines 13323 | -9/Mines | Discovered new exit (range 10) 13330 | -9/Mines | Learned Materials trap positions 13415 | -9/Mines | Found a damaged Exp. Sensor Array with a note attached 13416 | -9/Mines | Found Prototype Device 13416 | -9/Mines | Identified Exp. Sensor Array 13427 | -9/Mines | Deemed a non-threat by the Exiles lab entrance 13427 | -9/Mines | Discovered new exit (range 5) 13440 | -9/Mines | Discovered new exit (range 8) 13476 | -9/Mines | Received a Rocket Launcher from a helpful Derelict 13610 | -9/Mines | Build established: Hacker-Sprinter 20012 | -9/Mines | Entered Exiles 20016 | -9/Exiles | Discovered new exit (range 14) 20019 | -9/Exiles | Met 8R-AWN 20024 | -9/Exiles | Met EX-HEX 20035 | -9/Exiles | Met EX-DEC 20042 | -9/Exiles | Learned location of Zion (-6) 20061 | -9/Exiles | Met EX-BIN 20066 | -9/Exiles | Aligned with FarCom system 20066 | -9/Exiles | Given EX-Vault access code 20072 | -9/Exiles | Opened EX-Vault 20079 | -9/Exiles | Warned to stay clear of 0b10 Research branches 20084 | -9/Exiles | Exiles lab attacked by MAIN.C 20186 | -9/Exiles | Destroyed 9 combat bots 20235 | -9/Exiles | Discovered new exit (range 14) 20246 | -9/Exiles | Attacked by the Exiles 20272 | -9/Exiles | Entered Mines 20274 | -8/Mines | Reached level 12 20317 | -8/Mines | Discovered new exit (range 8) 20364 | -8/Mines | Discovered new exit (range 7) 22000 | -8/Mines | Entered Materials 22001 | -8/Materials | Loaded intel: 23 trap records 22002 | -8/Materials | Loaded intel: 1 garrison access location 22002 | -8/Materials | Reached level 13 22003 | -8/Materials | Upgraded with Utility slot (x1) 22239 | -8/Materials | Discovered new exit (range 16) 22280 | -8/Materials | Central database locked down 22537 | -8/Materials | Discovered new exit (range 15) 22551 | -8/Materials | Reached level 14 22554 | -8/Materials | Upgraded with Utility slot (x1) 22595 | -8/Materials | Destroyed 11 combat bots 22724 | -8/Materials | Identified exit to Storage 22724 | -8/Materials | Identified exit to Factory 22732 | -8/Materials | Build established: Wizard-Sprinter 22800 | -8/Materials | First assault squad dispatched 22879 | -8/Materials | Destroyed 11 combat bots 22880 | -8/Materials | Identified exit to Garrison 23327 | -8/Materials | Sterilization system engaged 23327 | -8/Materials | Non-combat units ordered to evacuate 23427 | -8/Materials | Combat units ordered to evacuate 23434 | -8/Materials | Entered Garrison 23434 | -8/Garrison | Accompanied by 1 ally 23438 | -8/Garrison | Triggered checkpoint 23473 | -8/Garrison | Garrison Relay disabled 23481 | -8/Garrison | Triggered checkpoint 23510 | -8/Garrison | Triggered checkpoint 23512 | -8/Garrison | Reached level 15 23544 | -8/Garrison | Triggered checkpoint 23568 | -8/Garrison | Destroyed 7 combat bots 23585 | -8/Garrison | Triggered checkpoint 23609 | -8/Garrison | Triggered checkpoint 23626 | -8/Garrison | Discovered new exit (range 12) 23668 | -8/Garrison | Garrison Relay disabled 23670 | -8/Garrison | Garrison Relay disabled 23672 | -8/Garrison | Garrison Relay disabled 23674 | -8/Garrison | Garrison Relay disabled 23736 | -8/Garrison | Garrison Relay disabled 23746 | -8/Garrison | Triggered checkpoint 23806 | -8/Garrison | Triggered checkpoint 23831 | -8/Garrison | Garrison Relay disabled 23856 | -8/Garrison | Rescued a captive Derelict 23859 | -8/Garrison | Rescued a captive Derelict 23870 | -8/Garrison | Discovered new exit (range 8) 23941 | -8/Garrison | Spotted B-75 Beast 23950 | -8/Garrison | Destroyed B-75 Beast 23968 | -8/Garrison | Triggered checkpoint 23985 | -8/Garrison | Garrison Relay disabled 23988 | -8/Garrison | Discovered new exit (range 73) 23988 | -8/Garrison | Discovered new exit (range 52) 23988 | -8/Garrison | Discovered new exit (range 7) 24097 | -8/Garrison | Entered Materials 24258 | -8/Materials | Discovered exit to Factory (range 9) 24377 | -8/Materials | Discovered exit to Storage (range 5) 24430 | -8/Materials | Discovered exit to Factory (range 10) 24442 | -8/Materials | Reached level 16 24445 | -8/Materials | Upgraded with Utility slot (x1) 24536 | -8/Materials | Discovered exit to Factory (range 5) 24691 | -8/Materials | Discovered exit to Storage (range 8) 24818 | -8/Materials | Identified exit to Garrison 25297 | -8/Materials | First assault squad dispatched 25388 | -8/Materials | Destroyed 8 combat bots 25489 | -8/Materials | High security lockdown imminent 25494 | -8/Materials | Sterilization system engaged 25494 | -8/Materials | Non-combat units ordered to evacuate 25594 | -8/Materials | Combat units ordered to evacuate 25624 | -8/Materials | Entered Garrison 25629 | -8/Garrison | Garrison Relay disabled 25635 | -8/Garrison | Garrison Relay disabled 25641 | -8/Garrison | Triggered checkpoint 25686 | -8/Garrison | Triggered checkpoint 25721 | -8/Garrison | Discovered new exit (range 51) 25721 | -8/Garrison | Discovered new exit (range 22) 25721 | -8/Garrison | Discovered new exit (range 42) 25731 | -8/Garrison | Garrison Relay disabled 25737 | -8/Garrison | Phase Generator disabled 25842 | -8/Garrison | Destroyed 8 combat bots 25876 | -8/Garrison | Garrison Relay disabled 25876 | -8/Garrison | Reached level 17 25916 | -8/Garrison | Destroyed 11 combat bots 25926 | -8/Garrison | Triggered checkpoint 25937 | -8/Garrison | Triggered checkpoint 25941 | -8/Garrison | Garrison Relay disabled 25999 | -8/Garrison | Triggered checkpoint 26026 | -8/Garrison | Triggered checkpoint 26042 | -8/Garrison | Garrison Relay disabled 26085 | -8/Garrison | Destroyed 16 combat bots 26097 | -8/Garrison | Entered Materials 26497 | -8/Materials | First assault squad dispatched 26589 | -8/Materials | Destroyed 9 combat bots 26647 | -8/Materials | Garrison activated, responded to threat 26693 | -8/Materials | Destroyed 8 combat bots 26704 | -8/Materials | Identified exit to Garrison 26835 | -8/Materials | Destroyed 7 combat bots 27029 | -8/Materials | Sterilization system engaged 27029 | -8/Materials | Non-combat units ordered to evacuate 27106 | -8/Materials | Entered Garrison 27106 | -8/Garrison | Accompanied by 1 ally 27137 | -8/Garrison | Discovered new exit (range 71) 27137 | -8/Garrison | Discovered new exit (range 71) 27137 | -8/Garrison | Discovered new exit (range 26) 27161 | -8/Garrison | Triggered checkpoint 27172 | -8/Garrison | Garrison Relay disabled 27187 | -8/Garrison | Destroyed 8 combat bots 27207 | -8/Garrison | Triggered checkpoint 27224 | -8/Garrison | Triggered checkpoint 27236 | -8/Garrison | Triggered checkpoint 27262 | -8/Garrison | Destroyed 10 combat bots 27270 | -8/Garrison | Triggered checkpoint 27328 | -8/Garrison | Triggered checkpoint 27337 | -8/Garrison | Garrison Relay disabled 27354 | -8/Garrison | Destroyed 12 combat bots 27354 | -8/Garrison | Garrison Relay disabled 27388 | -8/Garrison | Triggered checkpoint 27403 | -8/Garrison | Garrison Relay disabled 27464 | -8/Garrison | Discovered new exit (range 69) 27464 | -8/Garrison | Discovered new exit (range 44) 27464 | -8/Garrison | Discovered new exit (range 7) 27464 | -8/Garrison | Learned Materials security intel 27472 | -8/Garrison | Triggered checkpoint 27509 | -8/Garrison | Garrison Relay disabled 27545 | -8/Garrison | Entered Materials 27545 | -8/Materials | Accompanied by 1 ally 27705 | -8/Materials | Destroyed 7 combat bots 27851 | -8/Materials | Reached level 18 27854 | -8/Materials | Upgraded with Utility slot (x1) 27946 | -8/Materials | Destroyed 10 combat bots 28040 | -8/Materials | Core integrity fell below 50% 28105 | -8/Materials | Discovered exit to Storage (range 5) 29545 | -8/Materials | First assault squad dispatched 29622 | -8/Materials | Destroyed 7 combat bots 31274 | -8/Materials | Sterilization system engaged 31274 | -8/Materials | Non-combat units ordered to evacuate 31374 | -8/Materials | Combat units ordered to evacuate 31574 | -8/Materials | Ambient heat levels rising (+10) 31724 | -8/Materials | Ambient heat levels rising (+10) 31736 | -8/Materials | Entered Storage 31736 | -8/Storage | Accompanied by 1 ally 31786 | -8/Storage | Used back door to open Recycling access 31786 | -8/Storage | Discovered new exit (range 5) 31841 | -8/Storage | Met a pair of Derelict thieves 31844 | -8/Storage | Destroyed 11 combat bots 31914 | -8/Storage | Destroyed 8 combat bots 32028 | -8/Storage | Destroyed 13 combat bots 32245 | -8/Storage | Destroyed 12 combat bots 32536 | -8/Storage | First assault squad dispatched 37765 | -8/Storage | Sterilization system engaged 37765 | -8/Storage | Non-combat units ordered to evacuate 37865 | -8/Storage | Combat units ordered to evacuate 38065 | -8/Storage | Ambient heat levels rising (+10) 38143 | -8/Storage | Entered Factory 38143 | -7/Factory | Accompanied by 1 ally 38180 | -7/Factory | Identified exit to Lower Caves 38180 | -7/Factory | Identified exit to Factory 38263 | -7/Factory | Fabricated Exp. System Shield (x1) 38374 | -7/Factory | Reached level 19 38570 | -7/Factory | Destroyed 7 combat bots 38948 | -7/Factory | Fabricated Imp. Hacking Suite (x1) 39017 | -7/Factory | Fabricated Imp. Hacking Suite (x1) 39343 | -7/Factory | First assault squad dispatched 39348 | -7/Factory | Garrison activated, responded to threat 39400 | -7/Factory | Destroyed 13 combat bots 39460 | -7/Factory | Destroyed 10 combat bots 39806 | -7/Factory | Fabricated Adv. Hacking Suite (x1) 40047 | -7/Factory | Fabricated Adv. Hacking Suite (x1) 41079 | -7/Factory | Reached level 20 41317 | -7/Factory | Upgraded with Utility slot (x1) 41508 | -7/Factory | Core integrity fell below 50% 41538 | -7/Factory | Destroyed 9 combat bots 42024 | -7/Factory | High security lockdown imminent 42072 | -7/Factory | Manually triggered Chute Trap 42072 | -7/Factory | Sucked down chute 42072 | -7/Factory | Entered Waste 42075 | -7/Waste | Spotted C-40 Crusher 42076 | -7/Waste | Spotted C-40 Crusher 42079 | -7/Waste | Spotted C-40 Crusher 42080 | -7/Waste | Spotted C-40 Crusher 42082 | -7/Waste | Found Prototype Processor 42082 | -7/Waste | Identified Exp. Signal Interpreter 42087 | -7/Waste | EMP discharged 42088 | -7/Waste | Spotted C-40 Crusher 42097 | -7/Waste | Spotted C-40 Crusher 42099 | -7/Waste | Discovered new exit (range 10) 42112 | -7/Waste | Destroyed C-40 Crusher 42125 | -7/Waste | Destroyed C-40 Crusher 42138 | -7/Waste | Destroyed C-40 Crusher 42147 | -7/Waste | Destroyed C-40 Crusher 42178 | -7/Waste | Entered Factory 43489 | -7/Factory | Discovered exit to Factory (range 5) 43722 | -7/Factory | Discovered exit to Factory (range 5) 43778 | -7/Factory | First assault squad dispatched 48069 | -7/Factory | Identified exit to Garrison 48204 | -7/Factory | Fabricated Adv. Hacking Suite (x1) 48239 | -7/Factory | Fabricated Adv. Hacking Suite (x1) 48443 | -7/Factory | Fabricated Adv. Hacking Suite (x1) 48638 | -7/Factory | Destroyed 7 combat bots 48680 | -7/Factory | Identified exit to Garrison 48689 | -7/Factory | Reached level 21 48777 | -7/Factory | Central database locked down 49176 | -7/Factory | High security lockdown imminent 49225 | -7/Factory | Fabricated Adv. Hacking Suite (x1) 49256 | -7/Factory | High security lockdown engaged 49365 | -7/Factory | Destroyed 8 combat bots 49498 | -7/Factory | Destroyed 17 combat bots 49551 | -7/Factory | Destroyed 9 combat bots 49554 | -7/Factory | Sterilization system engaged 49554 | -7/Factory | Non-combat units ordered to evacuate 49654 | -7/Factory | Combat units ordered to evacuate 49663 | -7/Factory | Destroyed 18 combat bots 49737 | -7/Factory | Destroyed 10 combat bots 49783 | -7/Factory | Entered Garrison 49783 | -7/Garrison | Accompanied by 2 allies 49787 | -7/Garrison | Triggered checkpoint 49799 | -7/Garrison | Garrison Relay disabled 49823 | -7/Garrison | Phase Generator disabled 49825 | -7/Garrison | Met a derelict Sapper fleeing the area 49845 | -7/Garrison | Triggered checkpoint 49849 | -7/Garrison | Triggered checkpoint 49869 | -7/Garrison | Found embedded Infiltrators 49873 | -7/Garrison | Destroyed 7 combat bots 49906 | -7/Garrison | Discovered exit to Factory (range 8) 49908 | -7/Garrison | Installed Relay Interface Framework 49921 | -7/Garrison | Triggered checkpoint 49923 | -7/Garrison | Garrison Relay disabled 49934 | -7/Garrison | Rescued a captive Derelict 49963 | -7/Garrison | Triggered checkpoint 49975 | -7/Garrison | Triggered checkpoint 49995 | -7/Garrison | Destroyed 7 combat bots 50013 | -7/Garrison | Discovered exit to Factory (range 12) 50024 | -7/Garrison | Triggered checkpoint 50052 | -7/Garrison | Garrison Relay disabled 50059 | -7/Garrison | Destroyed 8 combat bots 50129 | -7/Garrison | Triggered checkpoint 50183 | -7/Garrison | Discovered exit to Factory (range 8) 50194 | -7/Garrison | Garrison Relay disabled 50600 | -7/Garrison | Entered Factory 50600 | -6/Factory | Accompanied by 2 allies 50645 | -6/Factory | Identified exit to Lower Caves 50645 | -6/Factory | Identified exit to Extension 50645 | -6/Factory | Identified exit to Factory 50684 | -6/Factory | Garrison activated, responded to threat 50809 | -6/Factory | Reached level 22 50898 | -6/Factory | Spotted B-75 Beast 50956 | -6/Factory | Destroyed B-75 Beast 51312 | -6/Factory | Fabricated Exp. System Shield (x1) 52175 | -6/Factory | Destroyed 9 combat bots 52428 | -6/Factory | Reached level 23 52700 | -6/Factory | First assault squad dispatched 52788 | -6/Factory | Destroyed 10 combat bots 53024 | -6/Factory | Fabricated Adv. Hacking Suite (x1) 53035 | -6/Factory | Central database locked down 53101 | -6/Factory | Fabricated Adv. Hacking Suite (x1) 53318 | -6/Factory | Garrison activated, responded to threat 53480 | -6/Factory | High security lockdown imminent 53529 | -6/Factory | Manually triggered Chute Trap 53529 | -6/Factory | Sucked down chute 53529 | -6/Factory | Entered Waste 53530 | -6/Waste | Joined by Warlord forces that had cleared the area 53539 | -6/Waste | A Compactor rumbled back to life 53539 | -6/Waste | Spotted C-40 Crusher 53634 | -6/Waste | 4 allies followed down the chute 53694 | -6/Waste | Discovered new exit (range 10) 53855 | -6/Waste | Murdered 16 allies 60350 | -6/Waste | Entered Factory 60350 | -6/Factory | Accompanied by 6 allies 60386 | -6/Factory | Garrison activated, responded to threat 60507 | -6/Factory | Garrison activated, responded to threat 60565 | -6/Factory | Destroyed 10 combat bots 60819 | -6/Factory | Fabricated Cld. Plasma Rifle (x1) 60825 | -6/Factory | Fabricated Cld. Plasma Rifle (x1) 60836 | -6/Factory | Fabricated Cld. Plasma Rifle (x1) 60861 | -6/Factory | Destroyed 14 combat bots 60918 | -6/Factory | Allied Derelicts emerged from ambush trap array 60963 | -6/Factory | Murdered 3 allies 61149 | -6/Factory | Fabricated Imp. Fusion Compressor (x2) 61531 | -6/Factory | Allied Derelicts emerged from ambush trap array 61583 | -6/Factory | Murdered 3 allies 61678 | -6/Factory | Garrison activated, responded to threat 61791 | -6/Factory | Reached level 24 61791 | -6/Factory | Upgraded with Utility slot (x1) 61861 | -6/Factory | Destroyed 7 combat bots 62450 | -6/Factory | First assault squad dispatched 62651 | -6/Factory | Destroyed 8 combat bots 62916 | -6/Factory | Sterilization system engaged 62916 | -6/Factory | Non-combat units ordered to evacuate 62978 | -6/Factory | Spotted B-75 Beast 62989 | -6/Factory | Destroyed B-75 Beast 63016 | -6/Factory | Combat units ordered to evacuate 63071 | -6/Factory | Destroyed 8 combat bots 63216 | -6/Factory | Ambient heat levels rising (+10) 63285 | -6/Factory | Entered Extension 63285 | -6/Extension | Accompanied by 5 allies 63341 | -6/Extension | Spotted B-75 Beast 63410 | -6/Extension | Disrupted transfer network 63444 | -6/Extension | Rescued a captive Derelict 63445 | -6/Extension | Rescued a captive Derelict 63465 | -6/Extension | Rescued a captive Derelict 63525 | -6/Extension | Rescued a captive Derelict 63528 | -6/Extension | Destroyed 7 combat bots 63559 | -6/Extension | Spotted B-75 Beast 63769 | -6/Extension | Destroyed B-75 Beast 63788 | -6/Extension | Destroyed B-75 Beast 63850 | -6/Extension | Discovered exit to Factory (range 4) 63878 | -6/Extension | Rescued a captive Derelict 63884 | -6/Extension | Rescued A7 63894 | -6/Extension | Rescued a captive Derelict 63895 | -6/Extension | Rescued a captive Derelict 64040 | -6/Extension | Destroyed 8 combat bots 64057 | -6/Extension | Rescued a captive Derelict 64058 | -6/Extension | Rescued a captive Derelict 64216 | -6/Extension | Discovered exit to Factory (range 10) 64216 | -6/Extension | Discovered new exit (range 6) 65044 | -6/Extension | Entered Cetus 65044 | -6/Cetus | Accompanied by 6 allies (A7) 65048 | -6/Cetus | Spotted Cetus Guard 65049 | -6/Cetus | Acquired a Cetus Manufacturing Module code from A7 65050 | -6/Cetus | Spotted Cetus Guard 65065 | -6/Cetus | Spotted Cetus Guard 65069 | -6/Cetus | Destroyed Cetus Guard 65127 | -6/Cetus | Started Cetus Manufacturing Module 65131 | -6/Cetus | Discovered new exit (range 15) 65139 | -6/Cetus | Spotted Cetus Guard 65140 | -6/Cetus | Spotted Cetus Guard 65143 | -6/Cetus | Spotted Cetus Guard 65143 | -6/Cetus | Spotted Cetus Guard 65145 | -6/Cetus | Destroyed Cetus Guard 65152 | -6/Cetus | Manufactured an Enhanced Grunt 65152 | -6/Cetus | Destroyed Cetus Guard 65162 | -6/Cetus | Destroyed Cetus Guard 65167 | -6/Cetus | Destroyed Cetus Guard 65173 | -6/Cetus | Discovered exit to Factory (range 15) 65175 | -6/Cetus | Met Revision 17 65177 | -6/Cetus | Manufactured an Enhanced Grunt 65202 | -6/Cetus | Manufactured an Enhanced Grunt 65203 | -6/Cetus | Discovered exit to Factory (range 15) 65227 | -6/Cetus | Manufactured an Enhanced Grunt 65252 | -6/Cetus | Manufactured an Enhanced Grunt 65378 | -6/Cetus | Escorted A7 to Cetus Mainframe 65794 | -6/Cetus | Security sweep announced 68588 | -6/Cetus | Cetus Manufacturing Module disabled 68831 | -6/Cetus | Reached level 25 68867 | -6/Cetus | Destroyed 7 combat bots 69391 | -6/Cetus | High security lockdown imminent 69471 | -6/Cetus | High security lockdown engaged 69582 | -6/Cetus | Core integrity fell below 50% 69627 | -6/Cetus | Core integrity fell below 20% 69641 | -6/Cetus | Sterilization system engaged 69641 | -6/Cetus | Non-combat units ordered to evacuate 69647 | -6/Cetus | Lost 4 allies 69703 | -6/Cetus | Destroyed 46 combat bots 69741 | -6/Cetus | Combat units ordered to evacuate 69941 | -6/Cetus | Ambient heat levels rising (+10) 70091 | -6/Cetus | Ambient heat levels rising (+10) 70241 | -6/Cetus | Ambient heat levels rising (+10) 70391 | -6/Cetus | Ambient heat levels rising (+10) 70541 | -6/Cetus | Ambient heat levels rising (+10) 70691 | -6/Cetus | Ambient heat levels rising (+10) 70841 | -6/Cetus | Ambient heat levels rising (+10) 70991 | -6/Cetus | Ambient heat levels rising (+10) 71141 | -6/Cetus | Ambient heat levels rising (+10) 71291 | -6/Cetus | Ambient heat levels rising (+10) 71441 | -6/Cetus | Ambient heat levels rising (+10) 71483 | -6/Cetus | Entered Archives 72215 | -6/Archives | Build established: Wizard-Gunner 72338 | -6/Archives | Discovered new exit (range 15) 72346 | -6/Archives | Discovered new exit (range 16) 72354 | -6/Archives | Discovered exit to Factory (range 16) 72467 | -6/Archives | Unable to access archive contents 72606 | -6/Archives | Build established: Wizard-Sprinter 77883 | -6/Archives | Entered Hub_04(d) 77919 | -6/Hub_04(d) | Identified exit to Garrison 77920 | -6/Hub_04(d) | Garrison activated, responded to threat 78177 | -6/Hub_04(d) | Spotted B-75 Beast 78213 | -6/Hub_04(d) | Destroyed B-75 Beast 78250 | -6/Hub_04(d) | Destroyed 8 combat bots 78415 | -6/Hub_04(d) | Destroyed 8 combat bots 78461 | -6/Hub_04(d) | Destroyed 7 combat bots 78581 | -6/Hub_04(d) | Garrison activated, responded to threat 87491 | -6/Hub_04(d) | Garrison activated, responded to threat 89783 | -6/Hub_04(d) | First assault squad dispatched 89905 | -6/Hub_04(d) | Garrison activated, responded to threat 90341 | -6/Hub_04(d) | Network Hub disabled 90348 | -6/Hub_04(d) | Spotted Lightning 90358 | -6/Hub_04(d) | Spotted Lightning 90358 | -6/Hub_04(d) | Spotted Lightning 90408 | -6/Hub_04(d) | Destroyed Lightning 90417 | -6/Hub_04(d) | Destroyed Lightning 90458 | -6/Hub_04(d) | Destroyed Lightning 90486 | -6/Hub_04(d) | Network Hub disabled 90516 | -6/Hub_04(d) | Network Hub disabled 90625 | -6/Hub_04(d) | Spotted Lightning 90625 | -6/Hub_04(d) | Spotted Lightning 90625 | -6/Hub_04(d) | Spotted Lightning 90669 | -6/Hub_04(d) | Destroyed 7 combat bots 90734 | -6/Hub_04(d) | System corruption reached 10% 90734 | -6/Hub_04(d) | Destroyed Lightning 90740 | -6/Hub_04(d) | Spotted Lightning 90744 | -6/Hub_04(d) | Destroyed Lightning 90750 | -6/Hub_04(d) | Destroyed Lightning 90818 | -6/Hub_04(d) | Entered Garrison 90838 | -6/Garrison | Triggered checkpoint 90858 | -6/Garrison | Garrison Relay disabled 90918 | -6/Garrison | Triggered checkpoint 91067 | -6/Garrison | Triggered checkpoint 91076 | -6/Garrison | Triggered checkpoint 91152 | -6/Garrison | Discovered exit to Factory (range 8) 91281 | -6/Garrison | Triggered checkpoint 91299 | -6/Garrison | Garrison Relay disabled 91329 | -6/Garrison | Triggered checkpoint 91362 | -6/Garrison | Triggered checkpoint 91390 | -6/Garrison | Garrison Relay disabled 91408 | -6/Garrison | Discovered exit to Factory (range 5) 91584 | -6/Garrison | Triggered checkpoint 91726 | -6/Garrison | Triggered checkpoint 91734 | -6/Garrison | Garrison Relay disabled 91763 | -6/Garrison | Discovered exit to Factory (range 15) 92387 | -6/Garrison | Build established: Wizard-Gunner 92419 | -6/Garrison | Entered Factory 92420 | -5/Factory | Core integrity fell below 50% 92520 | -5/Factory | Identified exit to Factory 92520 | -5/Factory | Identified exit to Upper Caves 92624 | -5/Factory | Fabricated Exp. Hacking Suite (x1) 92718 | -5/Factory | Build established: Wizard-Sprinter 92795 | -5/Factory | Spotted B-75 Beast 92801 | -5/Factory | Destroyed B-75 Beast 92807 | -5/Factory | Reached level 26 92826 | -5/Factory | Central database locked down 92894 | -5/Factory | Destroyed 8 combat bots 93324 | -5/Factory | Repaired Imp. Fusion Compressor 93424 | -5/Factory | Destroyed 12 combat bots 93777 | -5/Factory | Garrison activated, responded to threat 93822 | -5/Factory | Destroyed 14 combat bots 93828 | -5/Factory | Fabricated Exp. Hacking Suite (x1) 93836 | -5/Factory | Fabricated Exp. Hacking Suite (x1) 94288 | -5/Factory | Destroyed 15 combat bots 94531 | -5/Factory | Repaired Nuclear Pulse Thruster 94548 | -5/Factory | Repaired Cld. Nuclear Pulse Thruster 94794 | -5/Factory | Fabricated Exp. Hacking Suite (x1) 94838 | -5/Factory | Destroyed 13 combat bots 95004 | -5/Factory | Fabricated Exp. Hacking Suite (x1) 95092 | -5/Factory | Reached level 27 95119 | -5/Factory | First assault squad dispatched 95128 | -5/Factory | Fabricated Exp. Hacking Suite (x1) 95328 | -5/Factory | Sterilization system engaged 95328 | -5/Factory | Non-combat units ordered to evacuate 95428 | -5/Factory | Combat units ordered to evacuate 95457 | -5/Factory | Entered Upper Caves 95457 | -5/Upper Caves | Accompanied by 1 ally 95482 | -5/Upper Caves | Spotted B-75 Beast 95485 | -5/Upper Caves | Destroyed B-75 Beast 95489 | -5/Upper Caves | Learned Factory stockpile data 95630 | -5/Upper Caves | Attracted the attention of an 0b10 checkpoint 95639 | -5/Upper Caves | Attracted the attention of an 0b10 outpost 95673 | -5/Upper Caves | Destroyed 10 combat bots 95691 | -5/Upper Caves | Learned Factory emergency access door positions 95746 | -5/Upper Caves | Found DCF Scrap (13 items) 95797 | -5/Upper Caves | Discovered new exit (range 15) 95865 | -5/Upper Caves | Entered another Upper Caves area 95874 | -5/Upper Caves | Learned Factory trap positions 95874 | -5/Upper Caves | Discovered exit to Factory (range 11) 95891 | -5/Upper Caves | Attracted the attention of an 0b10 outpost 95937 | -5/Upper Caves | Destroyed 9 combat bots 96000 | -5/Upper Caves | Encountered a Warlord checkpoint 96105 | -5/Upper Caves | Discovered new exit (range 7) 96117 | -5/Upper Caves | Learned 4 Factory zone layouts 96273 | -5/Upper Caves | Entered Zhirov 96273 | -5/Zhirov | Discovered new exit (range 3) 96279 | -5/Zhirov | Met Zhirov 96291 | -5/Zhirov | Zhirov requested help retrieving the SGEMP Prototype 96297 | -5/Zhirov | Found Alien Artifact 96297 | -5/Zhirov | Identified Integrated Reactor 96297 | -5/Zhirov | Installed Integrated Reactor, increased core energy generation (+10) 96323 | -5/Zhirov | Found Alien Artifact 96336 | -5/Zhirov | Entered Proximity Caves 96483 | -4/Proximity Caves | Learned Research emergency access door positions 96512 | -4/Proximity Caves | Spotted B-86 Titan 96516 | -4/Proximity Caves | Destroyed B-86 Titan 96524 | -4/Proximity Caves | Found Unknown Protection 96524 | -4/Proximity Caves | Identified Hvy. Reflective Plating 96542 | -4/Proximity Caves | Attracted the attention of an 0b10 outpost 96615 | -4/Proximity Caves | Discovered exit to Factory (range 6) 96618 | -4/Proximity Caves | Attracted the attention of an 0b10 checkpoint 96640 | -4/Proximity Caves | Destroyed 12 combat bots 96645 | -4/Proximity Caves | Acquired the password to a Derelict Tinkerer's latest research 96650 | -4/Proximity Caves | Found Prototype Special Weapon 96650 | -4/Proximity Caves | Identified Molecular Deconstructor 97910 | -4/Proximity Caves | Entered Factory 97912 | -4/Factory | Loaded intel: 97 trap records 98033 | -4/Factory | Spotted B-86 Titan 98036 | -4/Factory | Destroyed B-86 Titan 98202 | -4/Factory | Discovered new exit (range 15) 98208 | -4/Factory | Identified exit to Upper Caves 98208 | -4/Factory | Identified exit to Research 98221 | -4/Factory | Reached level 28 98224 | -4/Factory | Upgraded with Utility slot (x1) 98559 | -4/Factory | Fabricated Enh. Quantum Rifle (x2) 99003 | -4/Factory | Garrison activated, responded to threat 99063 | -4/Factory | Fabricated Enh. Quantum Rifle (x2) 99149 | -4/Factory | Destroyed 10 combat bots 99281 | -4/Factory | Fabricated Exp. Hacking Suite (x1) 99382 | -4/Factory | Fabricated Exp. Heat Sink (x1) 99598 | -4/Factory | Spotted B-86 Titan 99785 | -4/Factory | Found Exp. Hacking Suite 99812 | -4/Factory | Destroyed B-86 Titan 99850 | -4/Factory | Fabricated Hvy. Wave Gun (x1) 99900 | -4/Factory | Reached level 29 99952 | -4/Factory | First assault squad dispatched 100452 | -4/Factory | Fabricated Adv. Weapon Cycler (x2) 100691 | -4/Factory | Destroyed 8 combat bots 100748 | -4/Factory | High security lockdown imminent 100762 | -4/Factory | Manually triggered Chute Trap 100762 | -4/Factory | Sucked down chute 100762 | -4/Factory | Entered Waste 100762 | -4/Waste | The area was eerily silent 100767 | -4/Waste | 5 allies followed down the chute 100776 | -4/Waste | Discovered new exit (range 15) 101077 | -4/Waste | Build established: Wizard-Gunner 102953 | -4/Waste | Found Unknown Device 102953 | -4/Waste | Identified Adv. Force Booster 107176 | -4/Waste | Entered Factory 107176 | -4/Factory | Accompanied by 1 ally 107449 | -4/Factory | Spotted B-86 Titan 107491 | -4/Factory | Build established: Wizard-Sprinter 107505 | -4/Factory | Destroyed B-86 Titan 107525 | -4/Factory | Found Prototype Device 107525 | -4/Factory | Identified Exp. Thermal Shield 107860 | -4/Factory | Destroyed 11 combat bots 107926 | -4/Factory | First assault squad dispatched 107953 | -4/Factory | Destroyed 7 combat bots 107964 | -4/Factory | Spotted B-86 Titan 108018 | -4/Factory | Destroyed B-86 Titan 108044 | -4/Factory | Reached level 30 108291 | -4/Factory | Destroyed 7 combat bots 108314 | -4/Factory | Cargo convoy interrupted 108390 | -4/Factory | Destroyed 8 combat bots 108470 | -4/Factory | Identified exit to Garrison 108758 | -4/Factory | Destroyed 8 combat bots 109535 | -4/Factory | Sterilization system engaged 109535 | -4/Factory | Non-combat units ordered to evacuate 109588 | -4/Factory | Destroyed 14 combat bots 109633 | -4/Factory | Entered Garrison 109640 | -4/Garrison | Garrison Relay disabled 109648 | -4/Garrison | Rescued a captive Derelict 109660 | -4/Garrison | Rescued a captive Derelict 109663 | -4/Garrison | Triggered checkpoint 109702 | -4/Garrison | Destroyed 7 combat bots 109757 | -4/Garrison | Triggered checkpoint 109757 | -4/Garrison | Spotted B-86 Titan 109763 | -4/Garrison | Triggered checkpoint 109764 | -4/Garrison | Destroyed B-86 Titan 109810 | -4/Garrison | Destroyed 8 combat bots 109854 | -4/Garrison | Discovered exit to Research (range 18) 109854 | -4/Garrison | Discovered exit to Research (range 58) 109854 | -4/Garrison | Discovered exit to Research (range 64) 109854 | -4/Garrison | Learned Research security intel 109854 | -4/Garrison | Phase Generator disabled 109870 | -4/Garrison | Triggered checkpoint 109874 | -4/Garrison | Garrison Relay disabled 109906 | -4/Garrison | Spotted B-86 Titan 109917 | -4/Garrison | Destroyed B-86 Titan 109937 | -4/Garrison | Found Unknown Hackware 109937 | -4/Garrison | Identified Relay Coupler [Proto] 109949 | -4/Garrison | Triggered checkpoint 109981 | -4/Garrison | Garrison Relay disabled 110003 | -4/Garrison | Spotted Striker 110003 | -4/Garrison | Spotted Striker 110014 | -4/Garrison | Destroyed Striker 110014 | -4/Garrison | Destroyed Striker 110026 | -4/Garrison | Garrison Relay disabled 110031 | -4/Garrison | Triggered checkpoint 110076 | -4/Garrison | Triggered checkpoint 110125 | -4/Garrison | Spotted B-86 Titan 110129 | -4/Garrison | Destroyed 12 combat bots 110131 | -4/Garrison | Destroyed B-86 Titan 110133 | -4/Garrison | Spotted B-90 Cyclops 110136 | -4/Garrison | Destroyed B-90 Cyclops 110157 | -4/Garrison | Destroyed B-75 Beast 110167 | -4/Garrison | Garrison Relay disabled 110173 | -4/Garrison | Triggered checkpoint 110242 | -4/Garrison | Identified Transdimensional Reconstructor 110242 | -4/Garrison | Warped through subspace 110328 | -4/Garrison | Entered Research 110358 | -3/Research | Central database locked down 110473 | -3/Research | Spotted B-86 Titan 110481 | -3/Research | Fabricated Exp. Weapon Cycler (x1) 110505 | -3/Research | Reached level 31 110505 | -3/Research | Destroyed B-86 Titan 110526 | -3/Research | Destroyed 9 combat bots 110565 | -3/Research | Discovered new exit (range 16) 110566 | -3/Research | Identified exit to Armory 110566 | -3/Research | Identified exit to Quarantine 110578 | -3/Research | First assault squad dispatched 110674 | -3/Research | Identified exit to Research 110997 | -3/Research | Garrison activated, responded to threat 111082 | -3/Research | Garrison activated, responded to threat 111226 | -3/Research | Fabricated Imp. Q-thruster (x1) 111726 | -3/Research | P-80 Master assimilated allied Administrator 8a 112274 | -3/Research | Destroyed 8 combat bots 112281 | -3/Research | Exp. Hacking Suite fried by hacking feedback 112316 | -3/Research | Spotted B-86 Titan 112323 | -3/Research | Destroyed B-86 Titan 112378 | -3/Research | Destroyed 9 combat bots 112481 | -3/Research | Fabricated Imp. Fusion Compressor (x2) 112744 | -3/Research | Reached level 32 112744 | -3/Research | Upgraded with Utility slot (x1) 112817 | -3/Research | Garrison activated, responded to threat 112856 | -3/Research | Spotted B-86 Titan 112863 | -3/Research | Destroyed 9 combat bots 112903 | -3/Research | Destroyed B-86 Titan 113090 | -3/Research | Cargo convoy interrupted 113091 | -3/Research | Destroyed 7 combat bots 113091 | -3/Research | Spotted Striker 113106 | -3/Research | Garrison activated, responded to threat 113141 | -3/Research | Core integrity fell below 50% 113266 | -3/Research | Fabricated Exp. Hacking Suite (x1) 113520 | -3/Research | Sterilization system engaged 113520 | -3/Research | Non-combat units ordered to evacuate 113526 | -3/Research | Destroyed 9 combat bots 113620 | -3/Research | Combat units ordered to evacuate 113820 | -3/Research | Ambient heat levels rising (+10) 113970 | -3/Research | Ambient heat levels rising (+10) 114069 | -3/Research | Build established: Wizard-Gunner 114120 | -3/Research | Ambient heat levels rising (+10) 114270 | -3/Research | Ambient heat levels rising (+10) 114420 | -3/Research | Ambient heat levels rising (+10) 114570 | -3/Research | Ambient heat levels rising (+10) 114720 | -3/Research | Ambient heat levels rising (+10) 114870 | -3/Research | Ambient heat levels rising (+10) 115020 | -3/Research | Ambient heat levels rising (+10) 115170 | -3/Research | Ambient heat levels rising (+10) 115320 | -3/Research | Ambient heat levels rising (+10) 115470 | -3/Research | Ambient heat levels rising (+10) 115620 | -3/Research | Ambient heat levels rising (+10) 115653 | -3/Research | Entered Quarantine 115774 | -3/Quarantine | Garrison activated, responded to threat 115802 | -3/Quarantine | Destroyed 9 combat bots 115866 | -3/Quarantine | Found Alien Slashing Weapon 115866 | -3/Quarantine | Identified Sigix Broadsword 115881 | -3/Quarantine | Spotted Alpha 7 115900 | -3/Quarantine | Destroyed Alpha 7 115948 | -3/Quarantine | Build established: Wizard-Sprinter 116008 | -3/Quarantine | Central database locked down 116052 | -3/Quarantine | Destroyed 7 combat bots 116120 | -3/Quarantine | Discovered exit to Research (range 15) 116136 | -3/Quarantine | Destroyed 7 combat bots 116414 | -3/Quarantine | Met incapacitated Sigix Warrior 116414 | -3/Quarantine | Lockdown squad dispatched 117424 | -3/Quarantine | Reached level 33 117431 | -3/Quarantine | Found Alien Artifact 117431 | -3/Quarantine | Identified Hpw. Transdimensional Reconstructor 117431 | -3/Quarantine | Warped through subspace 117470 | -3/Quarantine | Spotted Lightning 117470 | -3/Quarantine | Spotted Lightning 117516 | -3/Quarantine | Found Alien Artifact 117516 | -3/Quarantine | Identified Dimensional Node Initializer 117516 | -3/Quarantine | Initialized slip node 117522 | -3/Quarantine | Found Dimensional Node Initializer 117548 | -3/Quarantine | Initialized slip node 118174 | -3/Quarantine | Spotted Lightning 118688 | -3/Quarantine | Destroyed Lightning 118695 | -3/Quarantine | Destroyed Lightning 118704 | -3/Quarantine | Destroyed Lightning 118973 | -3/Quarantine | Found Hpw. Transdimensional Reconstructor 123653 | -3/Quarantine | First assault squad dispatched 125034 | -3/Quarantine | Destroyed 9 combat bots 126091 | -3/Quarantine | Found Alien Artifact 126123 | -3/Quarantine | Cryocooling Duct disabled 126138 | -3/Quarantine | Ambient heat levels rising (+20) 126138 | -3/Quarantine | Non-combat units ordered to evacuate 126229 | -3/Quarantine | High security lockdown imminent 126309 | -3/Quarantine | High security lockdown engaged 126362 | -3/Quarantine | Sterilization system engaged 126362 | -3/Quarantine | Non-combat units ordered to evacuate 126462 | -3/Quarantine | Combat units ordered to evacuate 126523 | -3/Quarantine | Destroyed 8 combat bots 126552 | -3/Quarantine | Cryocooling Duct disabled 126552 | -3/Quarantine | Cryocooling Duct disabled 126552 | -3/Quarantine | Cryocooling Duct disabled 126558 | -3/Quarantine | Cryocooling Duct disabled 126592 | -3/Quarantine | Spotted Fortress 126607 | -3/Quarantine | Discovered new exit (range 5) 126662 | -3/Quarantine | Ambient heat levels rising (+10) 126812 | -3/Quarantine | Ambient heat levels rising (+10) 126962 | -3/Quarantine | Ambient heat levels rising (+10) 127112 | -3/Quarantine | Ambient heat levels rising (+10) 127262 | -3/Quarantine | Ambient heat levels rising (+10) 127412 | -3/Quarantine | Ambient heat levels rising (+10) 127562 | -3/Quarantine | Ambient heat levels rising (+10) 127712 | -3/Quarantine | Ambient heat levels rising (+10) 127862 | -3/Quarantine | Ambient heat levels rising (+10) 128012 | -3/Quarantine | Ambient heat levels rising (+10) 128162 | -3/Quarantine | Ambient heat levels rising (+10) 128312 | -3/Quarantine | Ambient heat levels rising (+10) 128376 | -3/Quarantine | Destroyed Fortress 128462 | -3/Quarantine | Ambient heat levels rising (+10) 128486 | -3/Quarantine | Entered Section 7 128686 | -3/Section 7 | Identified Subatomic Replicator 128686 | -3/Section 7 | Used Subatomic Replicator to create Alien Artifact 128688 | -3/Section 7 | Identified Supercharged Integrated Reactor 128688 | -3/Section 7 | Installed Supercharged Integrated Reactor, increased core energy generation (+15) 128708 | -3/Section 7 | Identified exit to Garrison 128715 | -3/Section 7 | Garrison activated, responded to threat 128787 | -3/Section 7 | Destroyed 13 combat bots 128820 | -3/Section 7 | Found Integrated Reactor 128820 | -3/Section 7 | Installed Integrated Reactor, increased core energy generation (+10) 129260 | -3/Section 7 | Scanned by Researcher 129261 | -3/Section 7 | Intercept squad dispatched 129267 | -3/Section 7 | Spotted Tracker 129268 | -3/Section 7 | Spotted Tracker 129275 | -3/Section 7 | Destroyed Tracker 129277 | -3/Section 7 | Destroyed Tracker 129281 | -3/Section 7 | Spotted Combat Programmer 129282 | -3/Section 7 | Spotted Combat Programmer 129286 | -3/Section 7 | Destroyed Combat Programmer 129288 | -3/Section 7 | Destroyed Combat Programmer 129306 | -3/Section 7 | Intercept squad dispatched 129310 | -3/Section 7 | Spotted Tracker 129310 | -3/Section 7 | Spotted Tracker 129318 | -3/Section 7 | Destroyed Tracker 129318 | -3/Section 7 | Spotted S7 Guard 129325 | -3/Section 7 | Destroyed Tracker 129326 | -3/Section 7 | Spotted Combat Programmer 129327 | -3/Section 7 | Spotted Combat Programmer 129331 | -3/Section 7 | Destroyed Combat Programmer 129342 | -3/Section 7 | Destroyed Combat Programmer 129351 | -3/Section 7 | Destroyed S7 Guard 129364 | -3/Section 7 | Found Alien Artifact 129364 | -3/Section 7 | Identified Core Membrane 129364 | -3/Section 7 | Installed Core Membrane, gained immunity to corruption 129370 | -3/Section 7 | Found Exp. Phase Shifter 129453 | -3/Section 7 | Destroyed 14 combat bots 129522 | -3/Section 7 | First assault squad dispatched 129543 | -3/Section 7 | Discovered exit to Research (range 16) 129575 | -3/Section 7 | Found Alien Artifact 129575 | -3/Section 7 | Identified Integrity Redistributor 129575 | -3/Section 7 | Used Integrity Redistributor, redistributed integrity from core (-48) 129586 | -3/Section 7 | Found Alien Artifact 129586 | -3/Section 7 | Identified Integrated Dissipator 129586 | -3/Section 7 | Installed Integrated Dissipator, increased core heat dissipation (+20) 129735 | -3/Section 7 | Intercept squad dispatched 129749 | -3/Section 7 | Spotted Tracker 129749 | -3/Section 7 | Spotted Tracker 129750 | -3/Section 7 | Spotted Tracker 129755 | -3/Section 7 | Destroyed Tracker 129762 | -3/Section 7 | Destroyed Tracker 129766 | -3/Section 7 | Destroyed Tracker 129770 | -3/Section 7 | Spotted Combat Programmer 129780 | -3/Section 7 | Destroyed Combat Programmer 129784 | -3/Section 7 | Spotted Combat Programmer 129790 | -3/Section 7 | Destroyed Combat Programmer 129802 | -3/Section 7 | Spotted Combat Programmer 129807 | -3/Section 7 | Destroyed Combat Programmer 129831 | -3/Section 7 | Found Exp. Phase Shifter 129906 | -3/Section 7 | Spotted S7 Guard 129927 | -3/Section 7 | Destroyed S7 Guard 129980 | -3/Section 7 | Spotted B-86 Titan 129984 | -3/Section 7 | Destroyed B-86 Titan 130009 | -3/Section 7 | Spotted Alpha 7 130021 | -3/Section 7 | Spotted Alpha 7 130033 | -3/Section 7 | Destroyed Alpha 7 130056 | -3/Section 7 | Destroyed Alpha 7 130106 | -3/Section 7 | Spotted B-99 Colossus 130120 | -3/Section 7 | Found Integrated Reactor 130120 | -3/Section 7 | Installed Integrated Reactor, increased core energy generation (+10) 130122 | -3/Section 7 | Found Integrated Reactor 130122 | -3/Section 7 | Installed Integrated Reactor, increased core energy generation (+10) 130147 | -3/Section 7 | Found Alien Artifact 130147 | -3/Section 7 | Identified LRC Energy Well 130147 | -3/Section 7 | Installed LRC Energy Well, increased energy storage capacity (+250) 130157 | -3/Section 7 | Intercept squad dispatched 130158 | -3/Section 7 | Spotted Executioner 130169 | -3/Section 7 | Spotted Executioner 130170 | -3/Section 7 | Spotted Tracker 130170 | -3/Section 7 | Spotted Tracker 130170 | -3/Section 7 | Spotted Tracker 130174 | -3/Section 7 | Destroyed Executioner 130176 | -3/Section 7 | Destroyed Tracker 130185 | -3/Section 7 | Destroyed Tracker 130194 | -3/Section 7 | Destroyed Executioner 130194 | -3/Section 7 | Destroyed Tracker 130198 | -3/Section 7 | Found Exp. Core Analyzer 130199 | -3/Section 7 | Spotted Combat Programmer 130201 | -3/Section 7 | Found Exp. Core Analyzer 130207 | -3/Section 7 | Destroyed Combat Programmer 130208 | -3/Section 7 | Spotted Combat Programmer 130209 | -3/Section 7 | Spotted Combat Programmer 130217 | -3/Section 7 | Destroyed Combat Programmer 130224 | -3/Section 7 | Destroyed Combat Programmer 130234 | -3/Section 7 | Found Exp. Phase Shifter 130245 | -3/Section 7 | Destroyed 10 combat bots 130272 | -3/Section 7 | Destroyed B-99 Colossus 130318 | -3/Section 7 | Spotted Executioner 130318 | -3/Section 7 | Spotted Executioner 130321 | -3/Section 7 | High security lockdown imminent 130321 | -3/Section 7 | Destroyed Executioner 130326 | -3/Section 7 | Destroyed Executioner 130341 | -3/Section 7 | Spotted Striker 130347 | -3/Section 7 | Reached level 34 130399 | -3/Section 7 | Spotted Striker 130401 | -3/Section 7 | High security lockdown engaged 130402 | -3/Section 7 | Destroyed Striker 130409 | -3/Section 7 | Destroyed Striker 130424 | -3/Section 7 | Intercept squad dispatched 130438 | -3/Section 7 | Spotted Tracker 130440 | -3/Section 7 | Spotted Tracker 130440 | -3/Section 7 | Spotted Tracker 130444 | -3/Section 7 | Destroyed Tracker 130444 | -3/Section 7 | Spotted Tracker 130445 | -3/Section 7 | Spotted Tracker 130446 | -3/Section 7 | Destroyed Tracker 130451 | -3/Section 7 | Destroyed Tracker 130460 | -3/Section 7 | Destroyed Tracker 130462 | -3/Section 7 | Destroyed Tracker 130478 | -3/Section 7 | Found Alien Energy Gun 130478 | -3/Section 7 | Identified Sigix Sheargun 130478 | -3/Section 7 | Spotted Combat Programmer 130482 | -3/Section 7 | Spotted Combat Programmer 130487 | -3/Section 7 | Destroyed Combat Programmer 130488 | -3/Section 7 | Spotted Combat Programmer 130489 | -3/Section 7 | Destroyed Combat Programmer 130490 | -3/Section 7 | Spotted Combat Programmer 130496 | -3/Section 7 | Destroyed Combat Programmer 130496 | -3/Section 7 | Spotted Combat Programmer 130500 | -3/Section 7 | Destroyed Combat Programmer 130501 | -3/Section 7 | Sterilization system engaged 130501 | -3/Section 7 | Non-combat units ordered to evacuate 130507 | -3/Section 7 | Destroyed Combat Programmer 130548 | -3/Section 7 | Core integrity fell below 20% 130559 | -3/Section 7 | Spotted Striker 130559 | -3/Section 7 | Spotted Striker 130565 | -3/Section 7 | Destroyed Striker 130581 | -3/Section 7 | Destroyed Striker 130601 | -3/Section 7 | Combat units ordered to evacuate 130602 | -3/Section 7 | Destroyed 23 combat bots 130607 | -3/Section 7 | Found Sigix Sheargun 130634 | -3/Section 7 | Found Hpw. Transdimensional Reconstructor 130801 | -3/Section 7 | Ambient heat levels rising (+10) 130810 | -3/Section 7 | Entered Garrison 130864 | -3/Garrison | Heavy support dispatched to Research 130870 | -3/Garrison | Rescued a captive Derelict 130876 | -3/Garrison | Triggered checkpoint 130879 | -3/Garrison | Rescued a captive Derelict 130927 | -3/Garrison | Garrison Relay disabled 130934 | -3/Garrison | Triggered checkpoint 131032 | -3/Garrison | Triggered checkpoint 131041 | -3/Garrison | Garrison Relay disabled 131071 | -3/Garrison | Heavy support dispatched to Research 131082 | -3/Garrison | Spotted B-86 Titan 131089 | -3/Garrison | Triggered checkpoint 131117 | -3/Garrison | Destroyed B-86 Titan 131155 | -3/Garrison | Destroyed 17 combat bots 131189 | -3/Garrison | H-XX Assembler disabled 131226 | -3/Garrison | Triggered checkpoint 131226 | -3/Garrison | Discovered exit to Research (range 42) 131226 | -3/Garrison | Discovered exit to Research (range 35) 131226 | -3/Garrison | Discovered exit to Research (range 27) 131226 | -3/Garrison | Learned Research security intel 131226 | -3/Garrison | Phase Generator disabled 131263 | -3/Garrison | Destroyed 8 combat bots 131275 | -3/Garrison | Triggered checkpoint 131289 | -3/Garrison | Garrison Relay disabled 131373 | -3/Garrison | Destroyed 11 combat bots 131404 | -3/Garrison | Triggered checkpoint 131416 | -3/Garrison | Garrison Relay disabled 131500 | -3/Garrison | Triggered checkpoint 131509 | -3/Garrison | Triggered checkpoint 131558 | -3/Garrison | Triggered checkpoint 131569 | -3/Garrison | Garrison Relay disabled 131581 | -3/Garrison | Spotted B-75 Beast 131586 | -3/Garrison | Destroyed B-75 Beast 131590 | -3/Garrison | Spotted B-90 Cyclops 131590 | -3/Garrison | Destroyed B-90 Cyclops 131595 | -3/Garrison | Destroyed B-75 Beast 131644 | -3/Garrison | Entered Research 131645 | -2/Research | Identified exit to Testing 131833 | -2/Research | Destroyed 9 combat bots 131985 | -2/Research | Intercept squad dispatched 132005 | -2/Research | Spotted Tracker 132006 | -2/Research | Spotted Tracker 132012 | -2/Research | Destroyed Tracker 132018 | -2/Research | Spotted Combat Programmer 132021 | -2/Research | Destroyed Tracker 132025 | -2/Research | Core integrity fell below 50% 132041 | -2/Research | Destroyed Combat Programmer 132065 | -2/Research | Spotted Combat Programmer 132067 | -2/Research | Destroyed Combat Programmer 132090 | -2/Research | Destroyed 18 combat bots 132091 | -2/Research | Found Exp. Phase Shifter 132130 | -2/Research | Spotted B-90 Cyclops 132161 | -2/Research | Destroyed B-90 Cyclops 132270 | -2/Research | Central database locked down 132273 | -2/Research | Intercept squad dispatched 132298 | -2/Research | Spotted Tracker 132299 | -2/Research | Spotted Tracker 132300 | -2/Research | Destroyed Tracker 132302 | -2/Research | Destroyed Tracker 132303 | -2/Research | Spotted Tracker 132311 | -2/Research | Destroyed Tracker 132319 | -2/Research | Found Exp. Phase Shifter 132332 | -2/Research | Fabricated Imp. Q-thruster (x1) 132334 | -2/Research | Spotted Combat Programmer 132340 | -2/Research | Reached level 35 132347 | -2/Research | Destroyed Combat Programmer 132349 | -2/Research | Spotted Combat Programmer 132355 | -2/Research | Destroyed Combat Programmer 132361 | -2/Research | Spotted Combat Programmer 132364 | -2/Research | Destroyed Combat Programmer 132394 | -2/Research | First assault squad dispatched 132435 | -2/Research | Destroyed 14 combat bots 132614 | -2/Research | Spotted B-90 Cyclops 132657 | -2/Research | Garrison activated, responded to threat 132694 | -2/Research | Destroyed B-90 Cyclops 132697 | -2/Research | Intercept squad dispatched 132707 | -2/Research | Spotted Tracker 132707 | -2/Research | Spotted Tracker 132708 | -2/Research | Spotted Tracker 132709 | -2/Research | Spotted Tracker 132711 | -2/Research | Destroyed Tracker 132718 | -2/Research | Destroyed Tracker 132722 | -2/Research | Destroyed Tracker 132727 | -2/Research | Destroyed Tracker 132727 | -2/Research | Spotted Combat Programmer 132735 | -2/Research | Destroyed Combat Programmer 132744 | -2/Research | Spotted Combat Programmer 132745 | -2/Research | Spotted Combat Programmer 132749 | -2/Research | Core integrity fell below 20% 132749 | -2/Research | Destroyed Combat Programmer 132751 | -2/Research | Spotted Combat Programmer 132756 | -2/Research | Destroyed Combat Programmer 132756 | -2/Research | Destroyed Combat Programmer 132777 | -2/Research | Destroyed 11 combat bots 132886 | -2/Research | Fabricated Exp. Armor Integrity Analyzer (x1) 132932 | -2/Research | Destroyed 8 combat bots 132969 | -2/Research | Garrison activated, responded to threat 132996 | -2/Research | High security lockdown imminent 133021 | -2/Research | Destroyed 7 combat bots 133034 | -2/Research | Spotted B-90 Cyclops 133049 | -2/Research | Destroyed B-90 Cyclops 133054 | -2/Research | Allied Derelicts emerged from ambush trap array 133076 | -2/Research | High security lockdown engaged 133110 | -2/Research | Intercept squad dispatched 133136 | -2/Research | Spotted Tracker 133136 | -2/Research | Spotted Tracker 133139 | -2/Research | Fabricated Imp. Q-thruster? 133139 | -2/Research | Destroyed Tracker 133139 | -2/Research | Spotted Tracker 133141 | -2/Research | Spotted Tracker 133141 | -2/Research | Destroyed Tracker 133146 | -2/Research | Destroyed Tracker 133150 | -2/Research | Destroyed Tracker 133159 | -2/Research | Sterilization system engaged 133159 | -2/Research | Non-combat units ordered to evacuate 133172 | -2/Research | Lost 3 allies 133172 | -2/Research | Spotted Combat Programmer 133179 | -2/Research | Destroyed Combat Programmer 133191 | -2/Research | Spotted Combat Programmer 133198 | -2/Research | Destroyed Combat Programmer 133199 | -2/Research | Spotted Combat Programmer 133203 | -2/Research | Destroyed Combat Programmer 133206 | -2/Research | Lost 4 parts (4u) 133209 | -2/Research | Destroyed by G-73 Enforcer with Phase Gun Last Messages --------------- 33202_ M-36 Artificer unfolds itself. 33202_ Penetrated by EMDS Slug. 33202_ Core Membrane filtered system corruption (1). 33204_ Quantum Shear penetrates Combat Programmer. 33204_ Combat Programmer fries systems beyond repair. 33204_ Combat Programmer destroyed. 33205_ M-36 Artificer repairs B-74 Champion. 33205_ C-30 ARC bursts open, deploying its payload. 33205_ G-73 Enforcer unfolds itself. 33205_ L-61 Swordsman unfolds itself. 33205_ G-73 Enforcer unfolds itself. 33206_ Quantum Shear penetrates E-15 Imp. 33206_ E-15 Imp destroyed. 33206_ Switching to secondary target: B-74 Champion. 33206_ C-30 ARC bursts open, deploying its payload. 33206_ G-73 Enforcer unfolds itself. 33206_ L-61 Swordsman unfolds itself. 33206_ G-73 Enforcer unfolds itself. 33206_ I-47 Archangel unfolds itself. 33209_ M-36 Artificer repairs G-73 Enforcer. Map ----- +----------------------------------------------------+ | | | | | | | | | ????????????????????????###############??????????? | | ????????????????????????# = #??????????? | | ????????????????????????# #??????????? | | ????????????????????????# #??????????? | | ??????????????????????### #??????????? | | ?????????????########?# + ###########? | | ?????????????# #?# # ]## "## | | ?????????????# ### ###+#####/###### *=* " | | ?????????????# ## m%" [!!%%[ ##? | | ?????????????#! + l ![%>[[ "## | | ?????????????# ## gg% =%*!== ""# | | ?????????????# ## """"" gg####### =%[% | | ?????????????# ## ""Y"" ; #" ![ ## | | ?????????????# # !/*=% "####+#####? | | ?????????????# # =!gi# %# ! #? | | ?????????????# # =%bl # # #? | | ?????????????# + ![%= # #"""" #? | | ##?########### # [%= # #"""" #? | | #?# # # [ ; #"""" #? | | #?# ######## !!! # #"""" #? | | #?# # !!! ; # #? | | #?# / ! ; @ !! ;#####?? #? | | #?# # !! ##????##?#######? | | #?#! """" ; ![ !! ! [![ #????? #????????? | | ##?# """"" # !%! !=!*[![= #?????%#????????? | | #?# """"" ; [#####%]=!![########%###??????? | | #?########### #???#! #[[!!#?# [! #??????? | | #??????????# #???####!%%##?# #??????? | | #?########## #????####%%[###"" #??????? | | #?# # #???## ===!![#" #??????? | | ##?# # #####" =[!!=#"F #??????? | | ???# # ^ =%" =!!*%=#"" #??????? | | ???# # ^ !!%# """*![ #??????? | | ???# # ^ ^ !=# G[%!! ![#??????? | | ???# # # """[=" ![#??????? | | ???# # # "= # #??????? | | ???# ! # # # #??? | | ???# # # ####+##### | | ##########+## ### | | | | ####### =[%! | | ??????# [ ! % | | ??????# !%= *= [ ! | | ####### = """"""" # | | # #####+### """"""" # | | # #?? # % """"""" # | +----------------------------------------------------+ Best States ------------- Heat Dissipation 172 Energy Generation 85 Energy Capacity 400 Matter Stores 300 Matter Capacity 300 Sight Range 16 Robot Scan Range 18 Terrain Scan Density 10 Corruption Block 15 Armor Coverage 225 Resistance: KI 20 Resistance: TH 10 Weapon Shielding 66 Weapon Cycling 30 Phase Shifting 20 Evasion (%) 99 Targeting Accuracy 8 Core Analysis 12 Armor Integrity Analysis 50 Recoil Reduction 1 Particle Charging 30 Offensive Hacking 158 Defensive Hacking 50 Relay Coupler Types 1 Relay Coupler Value 148 Item Schematics ----------------- Power Shielding | -9/Materials | Extracted Beam Rifle | -9/Materials | Extracted Particle Gun | -9/Materials | Extracted Salvage Targeting Computer | -9/Materials | Extracted Lgt. Ion Engine | -9/Materials | Extracted Weapon Shielding | -9/Materials | Extracted Adv. Targeting Computer | -8/Materials | Extracted Hvy. Armor Plating | -8/Materials | Extracted Scythe | -8/Materials | Extracted Lgt. Assault Rifle | -8/Materials | Extracted Lgt. Cannon | -8/Materials | Extracted Adv. Visual Processing Unit | -8/Materials | Extracted Hvy. Mace | -8/Materials | Extracted Minigun | -8/Materials | Extracted Assault Cannon | -8/Materials | Extracted Deuterium Engine | -8/Materials | Extracted Arm. Treads | -8/Materials | Extracted Imp. Terrain Scanner | -8/Materials | Extracted Com. Wheel | -8/Materials | Extracted Great Maul | -8/Materials | Extracted Imp. Medium Laser | -8/Materials | Extracted Recoil Stabilizer | -8/Materials | Extracted Imp. Ion Engine | -8/Materials | Extracted Targeting Computer | -8/Materials | Extracted Spread Laser | -8/Materials | Extracted Med. Laser | -8/Materials | Extracted Shock Rifle | -8/Materials | Extracted Med. Armor Plating | -8/Materials | Extracted Ion Cannon | -8/Materials | Extracted Hrd. Light Armor Plating | -8/Materials | Extracted Particle Charger | -8/Materials | Extracted Field Laser | -8/Materials | Extracted Hvy. Ion Engine | -8/Materials | Extracted EM Pulse Gun | -8/Materials | Extracted Mni. Grenade Launcher | -8/Materials | Extracted Reaction Control System | -8/Materials | Extracted Hardlight Generator | -8/Materials | Extracted Tractor Beam | -8/Materials | Extracted Imp. Shield Generator | -8/Storage | Hacked Exp. System Shield | -7/Factory | Downloaded Imp. Hacking Suite | -7/Factory | Hacked Weapon Cycler | -7/Factory | Hacked Matter Filter | -7/Factory | Extracted Kinecellerator | -7/Factory | Extracted Blade Saw | -7/Factory | Extracted Cryofiber Web | -7/Factory | Extracted Imp. Terrain Scan Processor | -7/Factory | Extracted Launcher Guidance Computer | -7/Factory | Extracted Adv. Weight Redist. System | -7/Factory | Extracted Xenon Bombardment Thruster | -7/Factory | Extracted Imp. Heat Sink | -7/Factory | Extracted Microactuators | -7/Factory | Extracted VSS Leg | -7/Factory | Extracted Imp. Targeting Computer | -7/Factory | Extracted Pulse Rifle | -7/Factory | Extracted Adv. Hacking Suite | -7/Factory | Hacked Imp. Weapon Cycler | -7/Factory | Hacked Actuator Array | -7/Factory | Extracted Recalibrator | -7/Factory | Extracted Target Analyzer | -7/Factory | Extracted Hyb. Deuterium Engine | -7/Factory | Extracted Imp. Trap Extractor | -7/Factory | Extracted Sml. Matter Pod | -7/Factory | Extracted Gravmag System | -7/Factory | Extracted Arc Projector | -7/Factory | Extracted Nuclear Pulse Thruster | -7/Factory | Hacked Imp. Melee Analysis Suite | -7/Factory | Extracted Imp. Cesium-ion Thruster | -7/Factory | Extracted Machine Analyzer | -7/Factory | Extracted Flail | -7/Factory | Extracted Hpw. Tractor Beam | -7/Factory | Extracted Imp. Signal Interpreter | -7/Factory | Extracted Adv. ECM Suite | -7/Factory | Extracted Lyr. Light Armor Plating | -7/Factory | Extracted Insulated Plating | -7/Factory | Extracted Imp. Hover Unit | -7/Factory | Extracted Corruption Screen | -7/Factory | Extracted Lightning Gun | -7/Factory | Extracted Shock Absorption System | -7/Factory | Extracted Cesium-ion Thruster | -7/Factory | Extracted Seismic Detector | -7/Factory | Extracted Terrain Scan Processor | -7/Factory | Extracted Hvy. Rocket Launcher | -7/Factory | Extracted Imp. Medium Armor Plating | -7/Factory | Extracted Powered Hammer | -7/Factory | Extracted Adv. Shield Generator | -7/Factory | Hacked Core Analyzer | -7/Factory | Hacked Imp. Reaction Control System | -7/Factory | Hacked Cld. Cesium-ion Thruster | -6/Factory | Hacked Imp. Datajack | -6/Factory | Extracted Adv. Terrain Scan Processor | -6/Factory | Extracted Imp. VSS Leg | -6/Factory | Extracted System Shield | -6/Factory | Extracted Imp. Grenade Launcher | -6/Factory | Extracted Energy Filter | -6/Factory | Extracted Imp. Weapon Shielding | -6/Factory | Extracted Stasis Canceller | -6/Factory | Extracted Phase Cannon | -6/Factory | Extracted Proton Cannon | -6/Factory | Extracted Adv. Power Amplifier | -6/Factory | Hacked Imp. Medium Treads | -6/Factory | Extracted Med. Treads | -6/Factory | Extracted Fusion Compressor | -6/Factory | Hacked Adv. System Shield | -6/Factory | Hacked Adv. Datajack | -6/Factory | Hacked Graphene Brace | -6/Factory | Hacked Hvy. Ion Cannon | -6/Factory | Extracted Adv. Melee Analysis Suite | -6/Factory | Extracted Imp. Light Armor Plating | -6/Factory | Extracted Adv. Terrain Scanner | -6/Factory | Extracted Imp. Carbon-fiber Leg | -6/Factory | Extracted Component Analysis Suite | -6/Factory | Extracted Hpw. Shock Rifle | -6/Factory | Extracted Arm. Leg | -6/Factory | Extracted ECM Suite | -6/Factory | Extracted Cld. Plasma Rifle | -6/Factory | Hacked Imp. Fusion Compressor | -6/Factory | Hacked Adv. Particle Charger | -6/Factory | Hacked Wave Gun | -6/Factory | Hacked Adv. Reaction Control System | -6/Factory | Hacked Imp. Corruption Screen | -6/Factory | Hacked Adv. Heat Sink | -6/Factory | Hacked Imp. Component Analysis Suite | -6/Factory | Hacked Diametric Drive | -6/Factory | Hacked Phase Shifter | -6/Factory | Extracted Imp. Sensor Array | -6/Factory | Extracted Hvy. Plasma Cannon | -6/Factory | Extracted Remote Datajack | -6/Factory | Extracted Imp. Titanium Leg | -6/Factory | Extracted Enh. Autogun | -6/Factory | Scanalyzed Enh. Optical Array | -6/Factory | Extracted Imp. Remote Datajack | -6/Factory | Hacked Adv. System Restoration Module | -6/Factory | Hacked Field Propulsion Array | -6/Factory | Hacked Hardcell Cannon | -6/Factory | Hacked Hvy. Missile Launcher | -6/Factory | Extracted Com. Matter Pod | -6/Factory | Extracted Great Axe | -6/Factory | Extracted Flak Gun | -6/Factory | Extracted Hcp. Matter Pod | -6/Factory | Extracted Greatsword | -6/Factory | Extracted System Restoration Module | -6/Factory | Extracted Arm. Huge Wheel | -6/Factory | Extracted Imp. System Shield | -6/Factory | Extracted Cloaking Device | -6/Hub_04(d) | Hacked Adv. Corruption Screen | -5/Factory | Hacked Exp. Hacking Suite | -5/Factory | Hacked Hvy. Wave Gun | -5/Factory | Hacked Adv. Weapon Cycler | -5/Factory | Hacked Hvy. Machine Gun | -5/Factory | Extracted Flexi-carbon Leg | -5/Factory | Extracted Mic. Nuclear Core | -5/Factory | Extracted Imp. Deuterium Engine | -5/Factory | Extracted Imp. Plasma Cutter | -5/Factory | Hacked Field Propulsion Drive | -5/Factory | Hacked Lrn. Tractor Beam | -5/Factory | Hacked Imp. Field Recycling Unit | -5/Factory | Extracted Mass Driver | -5/Factory | Extracted Energy Well | -5/Factory | Extracted Fusion Reactor | -5/Factory | Extracted Chainsword | -5/Factory | Extracted Point Defense System | -5/Factory | Extracted Imp. Energy Well | -5/Factory | Extracted Mace | -5/Factory | Extracted Imp. Heavy Armor Plating | -5/Factory | Extracted Nuclear Pulse Array | -5/Factory | Extracted Thermic Laser | -5/Factory | Extracted Tesla Bomb Launcher | -5/Factory | Extracted Assault Drone Bay | -5/Zhirov | Free Exp. Heat Sink | -5/Zhirov | Free Exp. Optical Array | -5/Zhirov | Free Imp. Arc Thrower | -5/Zhirov | Free Adv. Recalibrator | -4/Factory | Hacked Quantum Rifle | -4/Factory | Hacked Imp. Linear Gravjet | -4/Factory | Extracted Matter Compressor | -4/Factory | Extracted Adv. Plasma Cannon | -4/Factory | Extracted Variable Charge Gun | -4/Factory | Extracted Power Sword | -4/Factory | Extracted Melee Analysis Suite | -4/Factory | Extracted Imp. Shock Absorption System | -4/Factory | Extracted Imp. Focal Shield | -4/Factory | Extracted Focal Shield | -4/Factory | Extracted Imp. Dynamic Insulation System | -4/Factory | Extracted Adv. Transmission Jammer | -4/Factory | Extracted Adv. Focal Shield | -4/Factory | Extracted Myomer Leg | -4/Factory | Extracted Energy Mantle | -4/Factory | Extracted Imp. Gravmag System | -4/Factory | Extracted Launcher Loader | -4/Factory | Extracted Antigrav System | -4/Factory | Extracted Quantum Capacitor | -4/Factory | Extracted Molecular Scythe | -4/Factory | Extracted Imp. Armor Integrity Analyzer | -4/Factory | Extracted Hrd. Heavy Armor Plating | -4/Factory | Extracted Enh. Quantum Rifle | -4/Factory | Hacked Weight Redist. System | -4/Factory | Extracted Imp. Thermal Shield | -4/Factory | Extracted Imp. Target Analyzer | -4/Factory | Extracted Gyrokinetic Inverter | -4/Factory | Extracted HERF Cannon | -4/Factory | Extracted Adv. Thermal Generator | -4/Factory | Extracted EM Disruption Field | -4/Factory | Extracted Micro-nuke Launcher | -4/Factory | Extracted Lgt. Angular Momentum Engine | -4/Factory | Extracted Hvy. Gauss Cannon | -4/Factory | Extracted Adv. Target Analyzer | -4/Factory | Extracted Antimatter Reactor | -4/Factory | Extracted Drone Bay | -4/Factory | Extracted Thermal Defense Suite | -4/Factory | Extracted Adv. Actuator Array | -4/Factory | Extracted Falx | -4/Factory | Extracted Imp. Coolant Injector | -4/Factory | Extracted Antimissile System | -4/Factory | Hacked Adv. Cryofiber Web | -4/Factory | Extracted Adv. Component Analysis Suite | -4/Factory | Hacked Centrium Leg | -4/Factory | Hacked Exp. Weapon Cycler | -3/Research | Hacked Imp. Q-thruster | -3/Research | Scanalyzed Lgt. Antimatter Reactor | -3/Research | Extracted Adv. Signal Interpreter | -3/Research | Extracted Impulse Thruster | -3/Research | Extracted Mic. Antimatter Reactor | -3/Research | Extracted Antigrav Array | -3/Research | Extracted Imp. Arc Projector | -3/Research | Extracted Hvy. Tesla Rifle | -3/Research | Extracted Adv. Medium Treads | -3/Research | Extracted Biometal Leg | -3/Research | Extracted Exp. Reaction Control System | -3/Research | Hacked Imp. Launcher Guidance Computer | -3/Research | Extracted Exp. Q-thruster | -3/Research | Hacked Adv. Remote Datajack | -3/Research | Hacked Arm. Medium Treads | -3/Quarantine | Extracted Exp. Energy Well | -3/Quarantine | Extracted Disruptor Cannon | -3/Quarantine | Extracted Hyp. Railgun | -3/Quarantine | Extracted Imp. Gyrokinetic Inverter | -3/Quarantine | Extracted Lrn. Proton Cannon | -3/Quarantine | Extracted Adv. Thermal Shield | -3/Quarantine | Extracted Adv. Phase Shifter | -3/Quarantine | Hacked Imp. Force Field | -3/Quarantine | Extracted Plasma Sword | -3/Quarantine | Extracted Adv. Launcher Guidance Computer | -3/Quarantine | Extracted Imp. Transmission Jammer | -3/Quarantine | Extracted Adv. Heavy Treads | -3/Quarantine | Extracted Lgt. Particle Reactor | -3/Quarantine | Extracted Particle Reactor | -3/Quarantine | Extracted Com. HERF Cannon | -3/Quarantine | Extracted Force Field | -3/Quarantine | Extracted Exp. Core Analyzer | -3/Quarantine | Hacked Exp. Armor Integrity Analyzer | -3/Quarantine | Hacked Exp. Phase Shifter | -3/Quarantine | Hacked Adv. Matter Compressor | -3/Quarantine | Archive Exp. Coolant Injector | -3/Quarantine | Archive Coolant Network | -3/Quarantine | Archive Adv. Myomer Leg | -3/Quarantine | Archive Electron Diverter | -3/Quarantine | Archive Ionic Axe | -3/Quarantine | Archive Cld. Phase Cannon | -3/Quarantine | Archive Helical Railgun | -3/Quarantine | Archive Exp. Thermal Shield | -3/Section 7 | Archive Cld. Proton Cannon | -3/Section 7 | Archive Lgt. Antimatter Cannon | -3/Section 7 | Archive Gamma Rifle | -3/Section 7 | Extracted Impulse Thruster Array | -3/Section 7 | Extracted Adv. Field Recycling Unit | -3/Section 7 | Extracted Hdn. Centrium Wheel | -3/Section 7 | Archive Adv. Kinecellerator | -3/Section 7 | Archive Cld. Field Propulsion Drive | -3/Section 7 | Archive Graviton Reactor | -3/Section 7 | Archive Adv. Micro-nuke Launcher | -3/Section 7 | Extracted Matter Neutralizer | -3/Section 7 | Extracted Med. Armored Exoskeleton | -3/Section 7 | Extracted Hvy. Proton Missile Launcher | -3/Section 7 | Extracted Exp. Cesium-ion Thruster | -3/Section 7 | Extracted Fusion Bomb Launcher | -3/Section 7 | Extracted Hvy. Disruptor Cannon | -2/Research | Extracted Imp. Propulsion Shielding | -2/Research | Extracted Cld. Impulse Thruster | -2/Research | Extracted Beam Splitter | -2/Research | Extracted Exp. Cooling System | -2/Research | Extracted Imp. System Guard | -2/Research | Extracted Kinetic Spear | -2/Research | Extracted Exp. Shock Absorption System | -2/Research | Extracted Adv. Drone Bay | -2/Research | Extracted Adv. EM Disruption Field | -2/Research | Extracted Adv. Coolant Injector | -2/Research | Extracted Imp. Utility Shielding | -2/Research | Extracted Gravmag Array | -2/Research | Extracted Imp. Powered Armor | -2/Research | Extracted Adv. VSS Leg | -2/Research | Extracted Q-thruster | -2/Research | Extracted Biometal Medium Treads | -2/Research | Extracted Triangulator | -2/Research | Extracted Imp. Energy Mantle | -2/Research | Extracted Force Lance | -2/Research | Extracted Lrn. Terrain Scanner | -2/Research | Extracted Imp. Recalibrator | -2/Research | Extracted Lyr. Medium Armor Plating | -2/Research | Extracted Adv. Salvage Targeting Computer | -2/Research | Extracted Robot Schematics ------------------ O-24 Administrator | -6/Factory | Hacked I-47 Archangel | -5/Factory | Hacked B-48 Gladiator | -5/Factory | Hacked O-32 Director | -4/Factory | Hacked G-67 Veteran | -4/Factory | Hacked E-15 Imp | -3/Research | Hacked R-06 Scavenger | -3/Research | Hacked B-74 Champion | -3/Quarantine | Hacked M-36 Artificer | -3/Quarantine | Archive Y-72 Warden | -3/Section 7 | Archive P-80 Master | -3/Section 7 | Archive G-73 Enforcer | -2/Research | Hacked A-15 Conveyor | -2/Research | Hacked Fabricated ------------ Exp. System Shield | x1 | -7/Factory Imp. Hacking Suite | x1 | -7/Factory Imp. Hacking Suite | x1 | -7/Factory Adv. Hacking Suite | x1 | -7/Factory Adv. Hacking Suite | x1 | -7/Factory Adv. Hacking Suite | x1 | -7/Factory Adv. Hacking Suite | x1 | -7/Factory Adv. Hacking Suite | x1 | -7/Factory Adv. Hacking Suite | x1 | -7/Factory Exp. System Shield | x1 | -6/Factory Adv. Hacking Suite | x1 | -6/Factory Adv. Hacking Suite | x1 | -6/Factory Cld. Plasma Rifle | x1 | -6/Factory Cld. Plasma Rifle | x1 | -6/Factory Cld. Plasma Rifle | x1 | -6/Factory Imp. Fusion Compressor | x2 | -6/Factory Exp. Hacking Suite | x1 | -5/Factory Exp. Hacking Suite | x1 | -5/Factory Exp. Hacking Suite | x1 | -5/Factory Exp. Hacking Suite | x1 | -5/Factory Exp. Hacking Suite | x1 | -5/Factory Exp. Hacking Suite | x1 | -5/Factory Enh. Quantum Rifle | x2 | -4/Factory | Preloaded Enh. Quantum Rifle | x2 | -4/Factory | Preloaded Exp. Hacking Suite | x1 | -4/Factory Exp. Heat Sink | x1 | -4/Factory Hvy. Wave Gun | x1 | -4/Factory Adv. Weapon Cycler | x2 | -4/Factory Exp. Weapon Cycler | x1 | -3/Research Imp. Q-thruster | x1 | -3/Research Imp. Fusion Compressor | x2 | -3/Research Exp. Hacking Suite | x1 | -3/Research Imp. Q-thruster | x1 | -2/Research Exp. Armor Integrity Analyzer | x1 | -2/Research Imp. Q-thruster | x1 | -2/Research Alien Tech Used ----------------- Integrated Reactor Transdimensional Reconstructor Sigix Broadsword High-powered Transdimensional Reconstructor Dimensional Node Initializer Subatomic Replicator Supercharged Integrated Reactor Core Membrane Integrity Redistributor Integrated Dissipator LRC Energy Well Sigix Sheargun Achievements -------------- Deconstruction Fearless Revising The Future Signature Confirmed Challenges ------------ None RPGLIKE | -11 -10 -10 -9 -9 -9 -8 -8 -8 -8 -8 -8 -8 -8 -8 -7 -7 -7 -7 -6 -6 -6 -6 -6 -6 -6 -6 -5 -5 -5 -5 -4 -4 -4 -4 -4 -3 -3 -3 -3 -2 --------- Run | Yrd Mat Min Mat Min Exi Min Mat Gar Mat Gar Mat Gar Mat Sto Fac Was Fac Gar Fac Was Fac Ext Cet Arc Hub Gar Fac Upp Upp Zhi Pro Fac Was Fac Gar Res Qua Sec Gar Res Levels Raised 34 | . 4 1 5 . . 1 2 1 1 1 . . 1 . 2 . 1 . 2 . 1 . 1 . . . 2 . . . . 2 . 1 . 2 1 1 . 1 XP Earned 55085 | 3100 7258 1231 7260 303 287 893 3353 1400 1412 729 658 439 467 596 2656 15 1433 338 2774 15 1447 367 909 32 494 152 2091 117 70 34 625 2690 15 1365 398 2783 1353 1057 260 2209 XP Spent 53885 | 2950 5460 700 8050 . 200 . 4690 . 2960 210 . . 2900 . 3200 . 730 750 . 250 3500 . 2420 . . . 550 . . . . 5240 . 350 . 4100 . 1815 760 2100 Upgrades 78 | 7 12 1 8 . 1 . 5 . 3 1 . . 1 . 1 . 3 2 . 1 1 . 17 . . . 1 . . . . 4 . 1 . 1 . 3 2 2 Propulsion Slot 3 | . 2 . 1 . . . . . . . . . . . . . . . . . . . . . . . . . . . . . . . . . . . . . Utility Slot 13 | . 2 . 3 . . . 2 . 1 . . . 1 . 1 . . . . . 1 . . . . . . . . . . 1 . . . 1 . . . . Weapon Slot 3 | 2 . . 1 . . . . . . . . . . . . . . . . . . . . . . . . . . . . . . . . . . . . . Core Integrity 15 | . . . . . . . . . . . . . . . . . . . . . . . 14 . . . . . . . . . . . . . . 1 . . Heat Dissipation 18 | 1 2 . . . . . 3 . 2 1 . . . . . . 1 . . 1 . . 2 . . . . . . . . 2 . 1 . . . . 2 . Energy Generation 3 | . . . 3 . . . . . . . . . . . . . . . . . . . . . . . . . . . . . . . . . . . . . Energy Storage 1 | . . . . . 1 . . . . . . . . . . . . . . . . . . . . . . . . . . . . . . . . . . . Mass Support 2 | 1 . . . . . . . . . . . . . . . . . . . . . . 1 . . . . . . . . . . . . . . . . . Inventory Capacity 2 | . . . . . . . . . . . . . . . . . . 2 . . . . . . . . . . . . . . . . . . . . . . Ranged Accuracy 8 | 3 . 1 . . . . . . . . . . . . . . . . . . . . . . . . . . . . . 1 . . . . . 1 . 2 Hack Attack % 4 | . 4 . . . . . . . . . . . . . . . . . . . . . . . . . . . . . . . . . . . . . . . Hack Defense % 2 | . 2 . . . . . . . . . . . . . . . . . . . . . . . . . . . . . . . . . . . . . . . KI Resistance % 4 | . . . . . . . . . . . . . . . . . 2 . . . . . . . . . 1 . . . . . . . . . . 1 . . Protomatter Created 49179 | . 608 97 854 40 63 70 777 695 894 691 963 698 746 1243 1445 88 2842 809 2524 280 2700 965 2299 126 2232 289 1956 271 161 . 573 3238 109 2963 968 3400 3106 3052 1458 2886 Integrity Restored 58095 | . 573 203 1127 71 78 75 979 657 480 494 616 310 788 596 1353 . 2388 429 2694 . 3293 819 2049 369 2591 867 3860 250 218 . 478 3587 46 3703 1214 4903 3512 5163 2401 4861 Core 47579 | . 520 167 832 12 78 75 757 475 416 388 498 242 626 488 1104 . 1874 341 2131 . 2701 639 1940 229 2142 867 3248 207 185 . 389 2898 . 2894 895 3653 2883 4716 1875 4194 Parts 10516 | . 53 36 295 59 . . 222 182 64 106 118 68 162 108 249 . 514 88 563 . 592 180 109 140 449 . 612 43 33 . 89 689 46 809 319 1250 629 447 526 667 Protomatter Decayed 22673 | . 316 26 294 16 76 . 431 391 562 514 665 574 413 794 944 . 1664 724 1192 272 1487 701 936 . 962 . 408 183 39 . 409 1418 177 1488 436 1365 1088 306 487 915 Game ------ Seed MasterFactoryInsulator Manual? 0 Play Time 31:51:32 Cumulative 305.1 hours Start 2024.09.27 @ 09:54:14 End 2024.10.09 @ 18:04:19 Sessions 45 Manual Loads 0 Difficulty Rogue Special Mode Winter2019/RPGLIKE Game No. 82 Rogue 74 Adventurer 8 Explorer 0 Win Type - Total 6 Types 3/0/2/1/0/0/0/0/0 Lore% 63 Gallery% 79 Achievement% 64 Wizard Run 0 Options --------- Layout 0 ASCII 0 Keyboard 1 Movement Vi Keybinds 0 Fullscreen 2 Font 16/Tamsyn Map View 89x57 Zoom Use 0% Tactical HUD 1 Map Filters NONE Filters NONE Steam 1 RUN: 22b0e62e-02be-4cd6-8d50-c915712f9270